{"text_format":"1","workbook":"xlsx","n_sheets":9,"sheets":["Instructivo","DEMANDA ANUAL","RESUMEN DE COSTOS AP","VOLUMEN DE QUEJAS","COSTO ADMINISTRACIÓN PÚBLICA","AUXILIAR COSTO ADMINISTRACIÓN","TIEMPO DE RESPUESTA","CANAL ATENCIÓN","RESUMEN"],"not_rendered":{"charts":0,"images":7,"macros":1,"external_links":0,"defined_names":1,"comments":6,"pivot_tables":0},"unopened":[],"bounds":{"document_bytes":16777216,"sheet_cells":100000,"rows_first":2000,"rows_last":500,"rows_between":2000,"halvings":0,"cell_chars":16384,"cell_head_chars":4096},"cells_cut":0,"cells_raw":0,"read":"whole","date_system":"1900"}

{"sheet":"Instructivo","index":0,"n_rows":70,"n_cols":1,"rows_kept":70,"cut":false,"hidden":false,"merged":[]}
["CRITERIO DE PRIORIZACIÓN DE TRÁMITES ADMINISTRATIVOS"]
["Instructivo"]
["Consideraciones generales"]
[]
["En las hojas “COSTO DE ADMINISTRACIÓN PÚBLICA”y “RESUMEN”  para añadir más trámites y que apliquen las fórmulas, se deberá seleccionar la primera fila y copiarla una por cada trámite de la entidad"]
[]
["Todas las hojas tienen columnas de color celeste, en las cuales NO deben ingresar valores ya que contienen fórmulas."]
["Para la carga en GOB.EC. La institución debe recordar que el peso máximo del archivo es de 2 MB."]
["Esquema de puntuación"]
["Para priorizar un trámite, se realizará un análisis de criterios básicos y adicionales basado en información que disponen las instituciones sujetas a esta norma técnica. Cada criterio será puntuado según los lineamientos presentes en esta norma."]
["a) Demanda Anual"]
["Considerará el volumen o frecuencia de las solicitudes que ingresan al año a cada institución para la gestión de un trámite en particular."]
["La identificación del volumen anual de los trámites se realizará a través de sus registros de transacciones y/o el número de visitas de consulta de información realizadas a través de páginas web institucionales."]
["Para realizar el registro realice lo siguiente:"]
["1.- Seleccione la hoja DEMANDA ANUAL"]
["2.- Ingrese los trámites de la institución registrando el identificador y nombre en las columnas respectivas.  "]
["3.- Para cada trámite debe especificar en la columna DEMANDA ANUAL el volumen o frecuencia anual, de acuerdo a lo mencionado anteriormente."]
["4.- Una vez terminado el llenado solicitado presione el botón PUNTUACIÓN, se ordenara de menor a mayor. "]
["5.- Usted visualizará el ordenamiento de los trámites ingresados de acuerdo al número de  volumen o frecuencia anual."]
["6.- Así mismo, usted visualizará el puntaje obtenido en la columna PUNTUACIÓN de acuerdo al grupo obtenido por cada trámite de acuerdo al número de volumen o frecuencia anual cosiderando lo siguiente: ** Primer grupo (trámites con menor demanda no incluye los trámites con demanda 0 ) = 3\n** Segundo grupo (trámites con demanda intermedia) = 6\n** Tercer grupo (trámites con mayor demanda) = 10"]
["Cada vez que requiera actualizar el puntaje presionando el botón puntuación, debe verificar que la celda de la columna puntaje se encuentren vacías, es decir, se debe borrar cualquier valor de puntaje obtenido previamente."]
["b) Volumen de quejas asociadas a un trámite: "]
["Considerará la cantidad de quejas recibidas en relación a un trámite durante un año. Estas quejas deberán estar documentadas en medios físicos y/o digitales."]
["Para determinar la puntuación, se colocará en una tabla todos los trámites con sus correspondientes quejas ordenándose de menor a mayor. Se dividirá en 2 partes en los que cada grupo contenga la misma cantidad de trámites."]
["Para realizar el registro realice lo siguiente:"]
["1.- Seleccione la hoja VOLUMEN DE QUEJAS"]
["2.- Ingrese los trámites de la institución registrando el identificador y nombre en las columnas respectivas.  Si usted requiere de acuerdo al número de trámites copie filas adicionales que estén dentro del cuadro"]
["3.- Para cada trámite debe especificar en la columna VOLUMEN QUEJAS el número de quejas anual, de acuerdo a lo mencionado anteriormente."]
["4.- Una vez terminado el llenado solicitado presione el botón PUNTUACIÓN."]
["5.- Usted visualizará el ordenamiento de los trámites ingresados de acuerdo al número de  volumen o frecuencia anual."]
["6.- Así mismo, usted visualizará el puntaje obtenido en la columna PUNTUACIÓN de acuerdo al grupo obtenido por cada trámite de acuerdo al número de volumen o frecuencia anual cosiderando lo siguiente: La puntuación se basará en los siguientes grupos:\n** Primer grupo (trámites con menor cantidad de quejas, no incluye los trámites con queja 0 ) = 4\n** Segundo grupo (trámites con mayor porcentaje de quejas) = 10"]
["El valor del volumen de quejas no debe ser superior al valor del volumen de la demana, no le permitirá registrar un valor."]
["c) Costo para la administración pública: "]
["En cada trámite, basado en un caso estándar, se deberá estimar el costo incurrido en el costo de personal y recursos necesarios para su atención desde que el administrado entregó todos los requisitos hasta que la institución entregue el producto, respuesta o servicio requerido en el trámite. Se considerará:"]
["• Costo de personal:"]
["Costo del personal para atender el trámite, se excluyen actividades realizadas automáticamente o que dependen del administrado. El tiempo deberá considerar únicamente el tiempo efectivo de trabajo del personal, no debe considerar el tiempo de espera o de movimiento."]
["• Costo de recursos:"]
["Se deberá considerar el costo directo en el que la institución debe incurrir para atender un trámite. Se debe considerar los insumos o materia prima necesaria u cualquier otro que la institución considere pertinente."]
["Para realizar el registro realice lo siguiente:"]
["1.- Seleccione la hoja COSTO ADMINISTRACIÓN PÚBLICA"]
["2.- Ingrese los trámites de la institución registrando el identificador y nombre en las columnas respectivas.  Si usted requiere de acuerdo al número de trámites copie filas adicionales que estén dentro del cuadro"]
["3.- Para calcular el tiempo de las actividades, utilizar la hoja AUXILIAR COSTO ADMINISTRACIÓN donde deberá listar todas las actividades que realiza la institución en un caso estándar y asignar el tiempo mínimo que toma cada actvidad (en horas). El tiempo total de las actividades, deberá ingresar en la correspondiente celda de la hoja COSTO ADMINISTRACIÓN PÚBLICA"]
["4.- En función de la información registrada en el paso 3, la matriz entregará el costo del personal"]
["5.- Completar la columna \"Costo recursos\", en la cual ingresará el costo directo en el que incurre la institución para entregar el trámite. En este valor se considerarán los valores correspondientes a insumos y/o materia prima mínimos que se invierten por cada trámite (no se considera mano de obra)"]
["6.- La columna \"Costo para la adm. pública\" mostrará el costto de este criterio para cada trámite"]
["7,- Para que la fórmula funcione debe arrastrar hacia abajo al último de los támites ingresados, no copiar"]
["7.- Una vez que disponga del Costo para la administración pública, presionar el botón \"GENERAR\"."]
["8. Visualizar la hoja “RESUMEN DE COSTO AP” en la que va a encontrar copiada las celdas necesarias para el ordenamiento y puntuación de las mismas al presionar el botón “PUNTUACIÓN”"]
[]
["d) Tiempo de respuesta: "]
["Considerará los tiempos que a las instituciones les toma dar respuesta a un trámite desde que reciben la solicitud del administrado hasta la finalización del mismo. Para la definición del tiempo se considerará un caso estándar."]
["Para determinar la puntuación, se colocará en una tabla todos los trámites con el tiempo de respuesta, ordenándose de menor a mayor. Se dividirá en 4 grupos, en los que cada uno contenga la misma cantidad de trámites."]
["Para realizar el registro realice lo siguiente:"]
["1.- Seleccione la hoja TIEMPO DE RESPUESTA"]
["2.- Ingrese los trámites de la institución registrando el identificador y nombre en las columnas respectivas.  Si usted requiere de acuerdo al número de trámites copie filas adicionales que estén dentro del cuadro"]
["3.- Para cada trámite debe especificar en la columna TIEMPO RESPUESTA el tiempo, de acuerdo a lo mencionado anteriormente."]
["4.- Una vez terminado el llenado solicitado presione el botón PUNTUACIÓN."]
["5.- Usted visualizará el ordenamiento de los trámites ingresados de acuerdo al número de  volumen o frecuencia anual."]
["6.- Así mismo, usted visualizará el puntaje obtenido en la columna PUNTUACIÓN de acuerdo al grupo obtenido por cada trámite de acuerdo al número de volumen o frecuencia anual cosiderando lo siguiente:  La puntuación considera lo siguiente:\n** Primer grupo (menor o igual a 40 horas laboralres) = 0\n** Segundo grupo mayor  40 horas laboralres) = 30"]
["e) Canal de atención: "]
["Considerará los canales de atención a través de los cuales el administrado puede iniciar el trámite."]
["Para realizar el registro realice lo siguiente:"]
["1.- Seleccione la hoja CANAL ATENCIÓN"]
["2.- Ingrese los trámites de la institución registrando el identificador y nombre en las columnas respectivas.  Si usted requiere de acuerdo al número de trámites copie filas adicionales que estén dentro del cuadro"]
["3.- Para cada trámite debe seleccionar el canal de atención del trámite en la columna CANAL ATENCIÓN, que pueden ser: \nEl trámite se puede completar totalmente en línea: Se considera trámite totalmente en línea cuando el administrado no requiere realizar ninguna interacción presencial con la institución = 0\nEl trámite no se puede completar totalmente en línea: Se considera este caso, cuando el trámite incluye al menos una actividad, incluido mecanismos de pago, en la que el administrado deba acudir presencialmente a la institución, para la realización de dicho trámite. Los trámites presenciales se consideran dentro de esta categoría = 10"]
["4.- De acuerdo a la selección usted obtendrá la puntuación del trámite que se visualizará en la columna PUNTUACIÓN."]
[]
["f) Resumen"]
["En esta hoja deberá consolidar todas las puntuaciones obtenidas para cada trámite en los criterios a) hasta e). Adicionalmente deberá analizar los criterios adicionales que dispone la norma técnica, para estos últimos solamente deberá seleccionar en la celda correspondiente y la matriz asignará la puntuación adicional. Los criterios que deberá considerar son:\n- NECESIDADES CIUDADANAS: Si la institución ha implementado mecanismos para identificar necesidades ciudadanas respecto al trámite, seleccionar \"SI\", caso contrario, seleccionar \"NO\"\n- SUSCEPTIBILIDAD A CORRUPCIÓN: Si la institución dispone de información documentada sobre presuntos actos de corrupción, seleccionar \"SI\", caso contrario, seleccionar \"NO\"\n- VOLUMEN DE DEVOLUCIONES: Si la institución posee documentación sobre devoluciones del trámite en una cantidad significativa, seleccionar \"SI\", caso contrario, seleccionar \"NO\"\nPara que funcione la lista depelgable debe arrastrar la lista y la puntuación hacia abajo al último de los támites ingresados, no copiar"]
["En la columna puntaje total se realizará la sumatoria de los valores de los criterios básicos y adicionales. Este valor deberá registrarse en la plataforma GOB.EC"]

{"sheet":"DEMANDA ANUAL","index":1,"n_rows":48,"n_cols":4,"rows_kept":48,"cut":false,"hidden":false,"merged":[[0,0,0,3],[1,0,1,3]]}
["PRIORIZACIÓN DE TRÁMITES ADMINISTRATIVOS"]
["DEMANDA ANUAL"]
[]
["IDENTIFICADOR","TRÁMITE","DEMANDA ANUAL","PUNTAJE"]
[null,"Autorización para invertir en títulos valores ",0,0]
[null,"Reserva de denominación de entidades del Sector Financiero Popular y Solidario.",0,0]
[null,"Liquidación voluntaria de las entidades del Sector Financiero Popular y Solidario.",1,3]
[null,"Atención de quejas y sugerencias a los servicios que presta la Superintendencia de Economía Popular y Solidaria.",2,3]
[null,"Autorización de emisión de certificados de aportación para Mutualistas.",2,3]
[null,"Emisión de criterio positivo para titularización de las cooperativas de ahorro y crédito y asociaciones mutualistas de ahorro y crédito para vivienda.",2,3]
[null,"Autorización para la emisión de valores de inscripción genérica.",4,3]
[null,"Autorización para la emisión de obligaciones de largo plazo de las cooperativas de ahorro y crédito y asociaciones mutualistas de ahorro y crédito para vivienda.",5,3]
[null,"Autorización de cierre de puntos de atención de entidades del Sector Financiero Popular y Solidario.",7,3]
[null,"Calificación de entidades no financieras especializadas que proveen recursos a las entidades del Sector Financiero Popular y Solidario.",7,3]
[null,"Autorización de productos financieros de las entidades del Sector Financiero Popular y Solidario",12,3]
[null,"Calificación de entidades financieras internacionales que proveen recursos a las entidades del Sector Financiero Popular y Solidario.",16,3]
[null,"Aprobación de cláusulas obligatorias y prohibiciones de los contratos de adhesión de los servicios financieros",23,3]
[null,"Capacitación técnica a entidades del Sector Financiero Popular y Solidario; y, a organizaciones de la Economía Popular y Solidaria.",23,3]
[null,"Atención a solicitudes de acceso a la información pública (LOTAIP)",26,3]
[null,"Autorización de adquisición, ampliación, construcción o conservación de bienes inmuebles para las entidades del Sector Financiero Popular y Solidario",33,3]
[null,"Actualización de datos de Buró de Crédito, solicitada por el socio de las entidades del Sector Financiero Popular y Solidario",46,6]
[null,"Actualización de datos de Buró de Crédito, solicitada por la entidad del Sector Financiero Popular y Solidario, a través de la estructura C60",60,6]
[null,"Calificación de Compañías y Organizaciones de Servicios Auxiliares para las entidades del Sector Financiero Popular y Solidario.",60,6]
[null,"Autorización de servicios financieros de las entidades del Sector Financiero Popular y Solidario",69,6]
[null,"Liquidación voluntaria de las Organizaciones de la Economía Popular y Solidaria.",77,6]
[null,"Reforma de estatutos de entidades del Sector Financiero  Popular y Solidario.",95,6]
[null,"Registro de socios de las entidades del Sector Financiero Popular y Solidario.",109,6]
[null,"Actualización de datos de contacto de las entidades del Sector Financiero Popular y Solidario.",114,6]
[null,"Autorización de traslado de puntos de atención de entidades del Sector Financiero Popular y Solidario.",130,6]
[null,"Autorización de apertura de puntos de atención de entidades del Sector Financiero Popular y Solidario.",158,6]
[null,"Atención de consultas jurídicas en el ámbito de competencia de la Superintendencia de Economía Popular y Solidaria",237,6]
[null,"Atención de consultas técnicas y/o legales en el ámbito de competencia de la Superintendencia de Economía Popular y Solidaria",241,6]
[null,"Reforma de estatutos de organizaciones de la Economía Popular y Solidaria.",285,6]
[null,"Calificación de personal estratégico y de apoyo para el control de las entidades del Sector Financiero Popular y Solidario; y, organizaciones de la Economía Popular y Solidaria.",417,6]
[null,"Atención de requerimientos de reprocesos de estructuras de información reportadas por las entidades del Sector Financiero Popular y Solidario.",436,10]
[null,"Atención de reclamos a entidades del Sector Financiero Popular y Solidario; y, a organizaciones de la Economía Popular y Solidaria.",556,10]
[null,"Constitución de organizaciones de la Economía Popular y Solidaria.",597,10]
[null,"Registro de Directivas de entidades del Sector Financiero Popular y Solidario.",663,10]
[null,"Actualización de datos de contacto de las organizaciones de la Economía Popular y Solidaria.",744,10]
[null,"Atención de denuncias a entidades del Sector Financiero Popular y Solidario; y, a organizaciones de la Economía Popular y Solidaria.",928,10]
[null,"Emisión de copias certificadas de documentación de acceso público en competencia de la Superintendencia de Economía Popular y Solidaria.",957,10]
[null,"Atención de requerimientos de administración de controles de las estructuras de información reportadas por las entidades del Sector Financiero Popular y Solidario.",1007,10]
[null,"Atención de requerimientos de prórroga para el reporte de información de las entidades del Sector Financiero Popular y Solidario.",1321,10]
[null,"Emisión de certificaciones de información de documentación de acceso público en competencia de la Superintendencia de Economía Popular y Solidaria.",5123,10]
[null,"Reserva de denominación de Organizaciones de la Economía Popular y Solidaria.",6001,10]
[null,"Registro de Directivas de organizaciones de la Economía Popular y Solidaria.",6635,10]
[null,"Registro de socios de las organizaciones de la Economía Popular y Solidaria.",10165,10]
[null,"Atención de consultas de información general en el ámbito de competencia de la Superintendencia de Economía Popular y Solidaria",66382,10]

{"sheet":"RESUMEN DE COSTOS AP","index":2,"n_rows":48,"n_cols":4,"rows_kept":48,"cut":false,"hidden":false,"merged":[[0,0,0,5],[1,0,1,5]]}
["PRIORIZACIÓN DE TRÁMITES ADMINISTRATIVOS"]
["COSTOS PARA LA ADMINISTRACIÓN PÚBLICA"]
[]
["IDENTIFICADOR","TRÁMITE","COSTO PARA LA ADM. PÚBLICA","PUNTUACIÓN"]
[null,"Autorización para invertir en títulos valores ",597.5,0]
[null,"Actualización de datos de contacto de las organizaciones de la Economía Popular y Solidaria.",0,0]
[null,"Registro de socios de las entidades del Sector Financiero Popular y Solidario.",0,0]
[null,"Reserva de denominación de entidades del Sector Financiero Popular y Solidario.",0,0]
[null,"Atención de requerimientos de prórroga para el reporte de información de las entidades del Sector Financiero Popular y Solidario.",0.4,5]
[null,"Reserva de denominación de Organizaciones de la Economía Popular y Solidaria.",0.4,5]
[null,"Atención de consultas de información general en el ámbito de competencia de la Superintendencia de Economía Popular y Solidaria",0.625,5]
[null,"Actualización de datos de Buró de Crédito, solicitada por el socio de las entidades del Sector Financiero Popular y Solidario",5.2,5]
[null,"Atención de requerimientos de administración de controles de las estructuras de información reportadas por las entidades del Sector Financiero Popular y Solidario.",6.45,5]
[null,"Atención de requerimientos de reprocesos de estructuras de información reportadas por las entidades del Sector Financiero Popular y Solidario.",7.7,5]
[null,"Registro de Directivas de entidades del Sector Financiero Popular y Solidario.",9.15,5]
[null,"Emisión de certificaciones de información de documentación de acceso público en competencia de la Superintendencia de Economía Popular y Solidaria.",10,5]
[null,"Atención a solicitudes de acceso a la información pública (LOTAIP)",10.199999999999999,5]
[null,"Emisión de copias certificadas de documentación de acceso público en competencia de la Superintendencia de Economía Popular y Solidaria.",11.45,5]
[null,"Calificación de Compañías y Organizaciones de Servicios Auxiliares para las entidades del Sector Financiero Popular y Solidario.",11.875,5]
[null,"Calificación de personal estratégico y de apoyo para el control de las entidades del Sector Financiero Popular y Solidario; y, organizaciones de la Economía Popular y Solidaria.",22.074999999999999,5]
[null,"Constitución de organizaciones de la Economía Popular y Solidaria.",23.75,5]
[null,"Actualización de datos de Buró de Crédito, solicitada por la entidad del Sector Financiero Popular y Solidario, a través de la estructura C60",28.524999999999999,10]
[null,"Capacitación técnica a entidades del Sector Financiero Popular y Solidario; y, a organizaciones de la Economía Popular y Solidaria.",36.25,10]
[null,"Atención de quejas y sugerencias a los servicios que presta la Superintendencia de Economía Popular y Solidaria.",46.875,10]
[null,"Registro de Directivas de organizaciones de la Economía Popular y Solidaria.",55,10]
[null,"Autorización de cierre de puntos de atención de entidades del Sector Financiero Popular y Solidario.",62.5,10]
[null,"Registro de socios de las organizaciones de la Economía Popular y Solidaria.",62.5,10]
[null,"Autorización de apertura de puntos de atención de entidades del Sector Financiero Popular y Solidario.",72.5,10]
[null,"Autorización de traslado de puntos de atención de entidades del Sector Financiero Popular y Solidario.",82.5,10]
[null,"Liquidación voluntaria de las Organizaciones de la Economía Popular y Solidaria.",87.5,10]
[null,"Reforma de estatutos de organizaciones de la Economía Popular y Solidaria.",105,10]
[null,"Autorización para la emisión de valores de inscripción genérica.",312.5,10]
[null,"Calificación de entidades financieras internacionales que proveen recursos a las entidades del Sector Financiero Popular y Solidario.",415,10]
[null,"Calificación de entidades no financieras especializadas que proveen recursos a las entidades del Sector Financiero Popular y Solidario.",415,10]
[null,"Atención de denuncias a entidades del Sector Financiero Popular y Solidario; y, a organizaciones de la Economía Popular y Solidaria.",420,20]
[null,"Aprobación de cláusulas obligatorias y prohibiciones de los contratos de adhesión de los servicios financieros",432.5,20]
[null,"Atención de consultas técnicas y/o legales en el ámbito de competencia de la Superintendencia de Economía Popular y Solidaria",482.5,20]
[null,"Reforma de estatutos de entidades del Sector Financiero  Popular y Solidario.",492.5,20]
[null,"Atención de reclamos a entidades del Sector Financiero Popular y Solidario; y, a organizaciones de la Economía Popular y Solidaria.",511.25,20]
[null,"Autorización de adquisición, ampliación, construcción o conservación de bienes inmuebles para las entidades del Sector Financiero Popular y Solidario",572.5,20]
[null,"Autorización de emisión de certificados de aportación para Mutualistas.",592.5,20]
[null,"Autorización de productos financieros de las entidades del Sector Financiero Popular y Solidario",592.5,20]
[null,"Autorización de servicios financieros de las entidades del Sector Financiero Popular y Solidario",592.5,20]
[null,"Autorización para invertir en títulos valores ",597.5,20]
[null,"Emisión de criterio positivo para titularización de las cooperativas de ahorro y crédito y asociaciones mutualistas de ahorro y crédito para vivienda.",597.5,20]
[null,"Atención de consultas jurídicas en el ámbito de competencia de la Superintendencia de Economía Popular y Solidaria",663.125,20]
[null,"Autorización para la emisión de obligaciones de largo plazo de las cooperativas de ahorro y crédito y asociaciones mutualistas de ahorro y crédito para vivienda.",677.5,20]
[null,"Liquidación voluntaria de las entidades del Sector Financiero Popular y Solidario.",2001.25,20]

{"sheet":"VOLUMEN DE QUEJAS","index":3,"n_rows":48,"n_cols":6,"rows_kept":48,"cut":false,"hidden":false,"merged":[[0,0,0,5],[1,0,1,5]]}
["PRIORIZACIÓN DE TRÁMITES ADMINISTRATIVOS"]
["VOLUMEN DE QUEJAS"]
[]
["IDENTIFICADOR","TRÁMITE","VOLUMEN DEMANDA","VOLUMEN DE QUEJAS","PORCENTAJE","PUNTUACIÓN"]
[null,"Autorización para invertir en títulos valores ",0,0,0,0]
[null,"Reserva de denominación de entidades del Sector Financiero Popular y Solidario.",0,0,0,0]
[null,"Liquidación voluntaria de las entidades del Sector Financiero Popular y Solidario.",1,0,0,0]
[null,"Atención de quejas y sugerencias a los servicios que presta la Superintendencia de Economía Popular y Solidaria.",2,0,0,0]
[null,"Autorización de emisión de certificados de aportación para Mutualistas.",2,0,0,0]
[null,"Emisión de criterio positivo para titularización de las cooperativas de ahorro y crédito y asociaciones mutualistas de ahorro y crédito para vivienda.",2,0,0,0]
[null,"Autorización para la emisión de valores de inscripción genérica.",4,0,0,0]
[null,"Autorización para la emisión de obligaciones de largo plazo de las cooperativas de ahorro y crédito y asociaciones mutualistas de ahorro y crédito para vivienda.",5,0,0,0]
[null,"Autorización de cierre de puntos de atención de entidades del Sector Financiero Popular y Solidario.",7,0,0,0]
[null,"Calificación de entidades no financieras especializadas que proveen recursos a las entidades del Sector Financiero Popular y Solidario.",7,0,0,0]
[null,"Autorización de productos financieros de las entidades del Sector Financiero Popular y Solidario",12,0,0,0]
[null,"Calificación de entidades financieras internacionales que proveen recursos a las entidades del Sector Financiero Popular y Solidario.",16,0,0,0]
[null,"Aprobación de cláusulas obligatorias y prohibiciones de los contratos de adhesión de los servicios financieros",23,0,0,0]
[null,"Capacitación técnica a entidades del Sector Financiero Popular y Solidario; y, a organizaciones de la Economía Popular y Solidaria.",23,0,0,0]
[null,"Atención a solicitudes de acceso a la información pública (LOTAIP)",26,0,0,0]
[null,"Autorización de adquisición, ampliación, construcción o conservación de bienes inmuebles para las entidades del Sector Financiero Popular y Solidario",33,0,0,0]
[null,"Actualización de datos de Buró de Crédito, solicitada por el socio de las entidades del Sector Financiero Popular y Solidario",46,0,0,0]
[null,"Actualización de datos de Buró de Crédito, solicitada por la entidad del Sector Financiero Popular y Solidario, a través de la estructura C60",60,0,0,0]
[null,"Calificación de Compañías y Organizaciones de Servicios Auxiliares para las entidades del Sector Financiero Popular y Solidario.",60,0,0,0]
[null,"Autorización de servicios financieros de las entidades del Sector Financiero Popular y Solidario",69,0,0,0]
[null,"Liquidación voluntaria de las Organizaciones de la Economía Popular y Solidaria.",77,0,0,0]
[null,"Reforma de estatutos de entidades del Sector Financiero  Popular y Solidario.",95,0,0,0]
[null,"Registro de socios de las entidades del Sector Financiero Popular y Solidario.",109,0,0,0]
[null,"Actualización de datos de contacto de las entidades del Sector Financiero Popular y Solidario.",114,0,0,0]
[null,"Autorización de traslado de puntos de atención de entidades del Sector Financiero Popular y Solidario.",130,0,0,0]
[null,"Autorización de apertura de puntos de atención de entidades del Sector Financiero Popular y Solidario.",158,0,0,0]
[null,"Atención de consultas jurídicas en el ámbito de competencia de la Superintendencia de Economía Popular y Solidaria",237,0,0,0]
[null,"Atención de consultas técnicas y/o legales en el ámbito de competencia de la Superintendencia de Economía Popular y Solidaria",241,0,0,0]
[null,"Reforma de estatutos de organizaciones de la Economía Popular y Solidaria.",285,0,0,0]
[null,"Calificación de personal estratégico y de apoyo para el control de las entidades del Sector Financiero Popular y Solidario; y, organizaciones de la Economía Popular y Solidaria.",417,0,0,0]
[null,"Atención de requerimientos de reprocesos de estructuras de información reportadas por las entidades del Sector Financiero Popular y Solidario.",436,0,0,0]
[null,"Atención de reclamos a entidades del Sector Financiero Popular y Solidario; y, a organizaciones de la Economía Popular y Solidaria.",556,0,0,0]
[null,"Constitución de organizaciones de la Economía Popular y Solidaria.",597,0,0,0]
[null,"Registro de Directivas de entidades del Sector Financiero Popular y Solidario.",663,0,0,0]
[null,"Actualización de datos de contacto de las organizaciones de la Economía Popular y Solidaria.",744,0,0,0]
[null,"Atención de denuncias a entidades del Sector Financiero Popular y Solidario; y, a organizaciones de la Economía Popular y Solidaria.",928,0,0,0]
[null,"Emisión de copias certificadas de documentación de acceso público en competencia de la Superintendencia de Economía Popular y Solidaria.",957,0,0,0]
[null,"Atención de requerimientos de administración de controles de las estructuras de información reportadas por las entidades del Sector Financiero Popular y Solidario.",1007,0,0,0]
[null,"Atención de requerimientos de prórroga para el reporte de información de las entidades del Sector Financiero Popular y Solidario.",1321,0,0,0]
[null,"Emisión de certificaciones de información de documentación de acceso público en competencia de la Superintendencia de Economía Popular y Solidaria.",5123,0,0,0]
[null,"Reserva de denominación de Organizaciones de la Economía Popular y Solidaria.",6001,0,0,0]
[null,"Registro de Directivas de organizaciones de la Economía Popular y Solidaria.",6635,0,0,0]
[null,"Registro de socios de las organizaciones de la Economía Popular y Solidaria.",10165,0,0,0]
[null,"Atención de consultas de información general en el ámbito de competencia de la Superintendencia de Economía Popular y Solidaria",66382,0,0,0]

{"sheet":"COSTO ADMINISTRACIÓN PÚBLICA","index":4,"n_rows":94,"n_cols":9,"rows_kept":94,"cut":false,"hidden":false,"merged":[[0,0,0,5],[1,0,1,5],[3,0,4,0],[3,1,4,1],[3,2,3,4],[3,5,4,5]]}
["PRIORIZACIÓN DE TRÁMITES ADMINISTRATIVOS"]
["COSTOS PARA LA ADMINISTRACIÓN PÚBLICA"]
[]
["IDENTIFICADOR","TRÁMITE","INSUMOS PARA COSTO",null,null,"COSTO PARA LA ADM. PÚBLICA",null,"SBU",400]
[null,null,"TIEMPO (HORAS)","COSTO PERSONAL","COSTO RECURSOS"]
[null,"Autorización para invertir en títulos valores ",239,{"$f":"C6*$I$4/160","v":597.5},0,{"$f":"D6+E6","v":597.5}]
[null,"Reserva de denominación de entidades del Sector Financiero Popular y Solidario.",0,{"$f":"C7*$I$4/160","v":0},0,{"$f":"D7+E7","v":0}]
[null,"Liquidación voluntaria de las entidades del Sector Financiero Popular y Solidario.",800.5,2001.25,0,2001.25]
[null,"Atención de quejas y sugerencias a los servicios que presta la Superintendencia de Economía Popular y Solidaria.",18.75,46.875,0,46.875]
[null,"Autorización de emisión de certificados de aportación para Mutualistas.",237,592.5,0,592.5]
[null,"Emisión de criterio positivo para titularización de las cooperativas de ahorro y crédito y asociaciones mutualistas de ahorro y crédito para vivienda.",239,597.5,0,597.5]
[null,"Autorización para la emisión de valores de inscripción genérica.",125,312.5,0,312.5]
[null,"Autorización para la emisión de obligaciones de largo plazo de las cooperativas de ahorro y crédito y asociaciones mutualistas de ahorro y crédito para vivienda.",271,677.5,0,677.5]
[null,"Autorización de cierre de puntos de atención de entidades del Sector Financiero Popular y Solidario.",25,62.5,0,62.5]
[null,"Calificación de entidades no financieras especializadas que proveen recursos a las entidades del Sector Financiero Popular y Solidario.",166,415,0,415]
[null,"Autorización de productos financieros de las entidades del Sector Financiero Popular y Solidario",237,592.5,0,592.5]
[null,"Calificación de entidades financieras internacionales que proveen recursos a las entidades del Sector Financiero Popular y Solidario.",166,415,0,415]
[null,"Aprobación de cláusulas obligatorias y prohibiciones de los contratos de adhesión de los servicios financieros",173,432.5,0,432.5]
[null,"Capacitación técnica a entidades del Sector Financiero Popular y Solidario; y, a organizaciones de la Economía Popular y Solidaria.",14.5,36.25,0,36.25]
[null,"Atención a solicitudes de acceso a la información pública (LOTAIP)",4.08,10.199999999999999,0,10.199999999999999]
[null,"Autorización de adquisición, ampliación, construcción o conservación de bienes inmuebles para las entidades del Sector Financiero Popular y Solidario",229,572.5,0,572.5]
[null,"Actualización de datos de Buró de Crédito, solicitada por el socio de las entidades del Sector Financiero Popular y Solidario",2.08,5.2,0,5.2]
[null,"Actualización de datos de Buró de Crédito, solicitada por la entidad del Sector Financiero Popular y Solidario, a través de la estructura C60",11.41,28.524999999999999,0,28.524999999999999]
[null,"Calificación de Compañías y Organizaciones de Servicios Auxiliares para las entidades del Sector Financiero Popular y Solidario.",4.75,11.875,0,11.875]
[null,"Autorización de servicios financieros de las entidades del Sector Financiero Popular y Solidario",237,592.5,0,592.5]
[null,"Liquidación voluntaria de las Organizaciones de la Economía Popular y Solidaria.",35,87.5,0,87.5]
[null,"Reforma de estatutos de entidades del Sector Financiero  Popular y Solidario.",197,492.5,0,492.5]
[null,"Registro de socios de las entidades del Sector Financiero Popular y Solidario.",0,0,0,0]
[null,"Actualización de datos de contacto de las entidades del Sector Financiero Popular y Solidario.",0,0,0,0]
[null,"Autorización de traslado de puntos de atención de entidades del Sector Financiero Popular y Solidario.",33,82.5,0,82.5]
[null,"Autorización de apertura de puntos de atención de entidades del Sector Financiero Popular y Solidario.",29,72.5,0,72.5]
[null,"Atención de consultas jurídicas en el ámbito de competencia de la Superintendencia de Economía Popular y Solidaria",265.25,663.125,0,663.125]
[null,"Atención de consultas técnicas y/o legales en el ámbito de competencia de la Superintendencia de Economía Popular y Solidaria",193,482.5,0,482.5]
[null,"Reforma de estatutos de organizaciones de la Economía Popular y Solidaria.",42,105,0,105]
[null,"Calificación de personal estratégico y de apoyo para el control de las entidades del Sector Financiero Popular y Solidario; y, organizaciones de la Economía Popular y Solidaria.",8.83,22.074999999999999,0,22.074999999999999]
[null,"Atención de requerimientos de reprocesos de estructuras de información reportadas por las entidades del Sector Financiero Popular y Solidario.",3.08,7.7,0,7.7]
[null,"Atención de reclamos a entidades del Sector Financiero Popular y Solidario; y, a organizaciones de la Economía Popular y Solidaria.",204.5,511.25,0,511.25]
[null,"Constitución de organizaciones de la Economía Popular y Solidaria.",9.5,23.75,0,23.75]
[null,"Registro de Directivas de entidades del Sector Financiero Popular y Solidario.",3.66,9.15,0,9.15]
[null,"Actualización de datos de contacto de las organizaciones de la Economía Popular y Solidaria.",0,0,0,0]
[null,"Atención de denuncias a entidades del Sector Financiero Popular y Solidario; y, a organizaciones de la Economía Popular y Solidaria.",168,420,0,420]
[null,"Emisión de copias certificadas de documentación de acceso público en competencia de la Superintendencia de Economía Popular y Solidaria.",4.58,11.45,0,11.45]
[null,"Atención de requerimientos de administración de controles de las estructuras de información reportadas por las entidades del Sector Financiero Popular y Solidario.",2.58,6.45,0,6.45]
[null,"Atención de requerimientos de prórroga para el reporte de información de las entidades del Sector Financiero Popular y Solidario.",0.16,0.4,0,0.4]
[null,"Emisión de certificaciones de información de documentación de acceso público en competencia de la Superintendencia de Economía Popular y Solidaria.",4,10,0,10]
[null,"Reserva de denominación de Organizaciones de la Economía Popular y Solidaria.",0.16,0.4,0,0.4]
[null,"Registro de Directivas de organizaciones de la Economía Popular y Solidaria.",22,55,0,55]
[null,"Registro de socios de las organizaciones de la Economía Popular y Solidaria.",25,62.5,0,62.5]
[null,"Atención de consultas de información general en el ámbito de competencia de la Superintendencia de Economía Popular y Solidaria",0.25,0.625,0,0.625]
[]
[]
[]
[]
[]
[]
[]
[]
[]
[]
[]
[]
[]
[]
[]
[]
[]
[]
[]
[]
[]
[]
[]
[]
[]
[]
[]
[]
[]
[]
[]
[]
[]
[]
[]
[]
[]
[]
[]
[]
[]
[]
[null,null,null,0,null,0]
[null,null,null,0,null,0]
[null,null,null,0,null,0]

{"sheet":"AUXILIAR COSTO ADMINISTRACIÓN","index":5,"n_rows":211,"n_cols":24,"rows_kept":211,"cut":false,"hidden":false,"merged":[[191,2,191,3],[191,6,191,7],[191,10,191,11],[191,14,191,15],[191,18,191,19],[170,2,170,3],[170,6,170,7],[170,10,170,11],[170,14,170,15],[170,18,170,19],[149,2,149,3],[149,6,149,7],[149,10,149,11],[149,14,149,15],[149,18,149,19],[128,2,128,3],[128,6,128,7],[128,10,128,11],[128,14,128,15],[128,18,128,19],[107,2,107,3],[107,6,107,7],[107,10,107,11],[107,14,107,15],[107,18,107,19],[86,2,86,3],[86,6,86,7],[86,10,86,11],[86,14,86,15],[86,18,86,19],[44,22,44,23],[65,2,65,3],[65,6,65,7],[65,10,65,11],[65,14,65,15],[65,18,65,19],[65,22,65,23],[44,2,44,3],[44,6,44,7],[44,10,44,11],[44,14,44,15],[44,18,44,19],[2,18,2,19],[2,22,2,23],[23,2,23,3],[23,6,23,7],[23,10,23,11],[23,14,23,15],[23,18,23,19],[23,22,23,23],[2,2,2,3],[2,6,2,7],[2,10,2,11],[2,14,2,15]]}
[]
[]
[null,"TRÁMITE:","1.Reserva de denominación de entidades del Sector Financiero Popular y Solidario.",null,null,"TRÁMITE:","11. Calificación de entidades no financieras especializadas que proveen recursos a las entidades del Sector Financiero Popular y Solidario.",null,null,"TRÁMITE:","21. Calificación de personal estratégico y de apoyo para el control de las entidades del Sector Financiero Popular y Solidario; y, organizaciones de la Economía Popular y Solidaria.",null,null,"TRÁMITE:","31. Autorización de apertura de puntos de atención de entidades del Sector Financiero Popular y Solidario.",null,null,"TRÁMITE:","41. Emisión de copias certificadas de documentación de acceso público en competencia de la Superintendencia de Economía Popular y Solidaria.",null,null,"TRÁMITE:","51. Atención de consultas técnicas y/o legales en el ámbito de competencia de la Superintendencia de Economía Popular y Solidaria"]
[null,"NO.","ACTIVIDAD","TIEMPO (HORAS)",null,"NO.","ACTIVIDAD","TIEMPO (HORAS)",null,"NO.","ACTIVIDAD","TIEMPO (HORAS)",null,"NO.","ACTIVIDAD","TIEMPO (HORAS)",null,"NO.","ACTIVIDAD","TIEMPO (HORAS)",null,"NO.","ACTIVIDAD","TIEMPO (HORAS)"]
[null,1,"Asignar trámite a la unidad competente.",null,null,1,"Asignar trámite al analista",1,null,1,"Calificación de Auditores Externos e Internos:\nRevisar la documentación cargada al sistema presentada por el usuario.",{"$f":"30/60","v":0.5},null,1,"Agencias- Sucursales:\nAsignar trámite al analista",1,null,1,"Revisar solicitud.",{"$f":"15/60","v":0.25},null,1,"Asignar trámite al analista",1]
[null,2,"Analizar requerimiento solicitado.",null,null,2,"Analizar legalmente los requisitos",{"$f":"5*4","v":20},null,2,"Emitir una resolución de calificación del auditor interno persona natural o jurídica.",8,null,2,"\nRevisar requisitos",1,null,2,"Gestionar documentación y/o información. ",1,null,2,"Analizar oficio de consulta",{"$f":"1*8","v":8}]
[null,3,"Verificar en el catastro que no exista otra organización o entidad con un nombre similar.",null,null,3,"Elaborar y enviar oficio para completar requisitos",{"$f":"3*8","v":24},null,3,"Elaborar respuesta y envíar los documentos por correo electrónico al peticionario. ",{"$f":"20/60","v":0.33333333333333331},null,3,"Generar informe de la herramienta  SAT",{"$f":"1*4","v":4},null,3,"Fotocopiar y/o descargar documentos.",2,null,3,"Enviar memorando",{"$f":"1*8","v":8}]
[null,4,"Gestionar la respuesta al usuario sobre la solicitud.",null,null,4,"Elaborar informe técnico legal y resolución de autorización ",{"$f":"3*8","v":24},null,4,null,null,null,4,"Registrar apertura de oficina y generar código",1,null,4,"Elaborar la respuesta a la solicitud del requirente.",{"$f":"30/60","v":0.5},null,4,"Analizar consulta técnica",{"$f":"10*8","v":80}]
[null,5,"Notificar al usuario reserva de denominación (cambio de denominación) por el canal de notificación seleccionado",null,null,5,"Revisar informe técnico legal y resolución de autorización ",{"$f":"5*8","v":40},null,5,null,null,null,5,"Elaborar informe técnico legal y borrador resolución de apertura ",{"$f":"1*8","v":8},null,5,"Revisar respuesta a la solicitud del requirente.",{"$f":"20/60","v":0.33333333333333331},null,5,"Recopilar información de áreas técnicas",{"$f":"1*8","v":8}]
[null,6,null,null,null,6,"Realizar correcciones",{"$f":"3*8","v":24},null,6,null,null,null,6,"Revisar informe técnico legal y borrador de resolución de apertura ",6,null,6,"Firmar oficio o memorando de respuesta y copia certificada.",{"$f":"30/60","v":0.5},null,6,"Elaborar memorando de respuesta SGD",{"$f":"1*8","v":8}]
[null,7,null,null,null,7,"Aprobar  informe técnico legal y resolución de autorización ",{"$f":"1*8","v":8},null,7,null,null,null,7,"Realizar correcciones",4,null,7,null,null,null,7,"Revisar memorando de respuesta",{"$f":"1*8","v":8}]
[null,8,null,null,null,8,"Suscribir la resolución. ",{"$f":"1*8","v":8},null,8,null,null,null,8,"Validar y suscribir informe técnico legal en el cual se recomienda la suscripción de resolución ",3,null,8,null,null,null,8,"Realizar correcciones",{"$f":"1*8","v":8}]
[null,9,null,null,null,9,"Notificar al usuario la resolución de calificación como entidad no financiera especializada que provee recursos a las entidades del Sector Financiero Popular y Solidario",{"$f":"1*8","v":8},null,9,null,null,null,9,"Aprobar,suscribir  y enviar la resolución mediante oficio de notificación",1,null,9,null,null,null,9,"Firmar memorando de respuesta (SGD)",{"$f":"1*8","v":8}]
[null,10,null,null,null,10,"Registrar en el sistema GOSF",1,null,10,null,null,null,10,null,null,null,10,null,null,null,10,"Elaborar proyecto de respuesta (SGD)",{"$f":"3*8","v":24}]
[null,11,null,null,null,11,"Solicitar publicación de  listado de entidades en la página institucional ",8,null,11,null,null,null,11,null,null,null,11,null,null,null,11,"Revisar proyecto de respuesta",{"$f":"2*8","v":16}]
[null,12,null,null,null,12,null,null,null,12,null,null,null,12,null,null,null,12,null,null,null,12,"Realizar correcciones",{"$f":"1*8","v":8}]
[null,13,null,null,null,13,null,null,null,13,null,null,null,13,null,null,null,13,null,null,null,13,"Firmar proyecto y enviar respuesta (SGD) ",{"$f":"1*8","v":8}]
[null,14,null,null,null,14,null,null,null,14,null,null,null,14,null,null,null,14,null,null,null,14]
[null,15,null,null,null,15,null,null,null,15,null,null,null,15,null,null,null,15,null,null,null,15]
[]
[null,null,"SUMATORIA ACTIVIDADES",{"$f":"SUM(D5:D20)","v":0},null,null,"SUMATORIA ACTIVIDADES",{"$f":"SUM(H5:H20)","v":166},null,null,"SUMATORIA ACTIVIDADES",{"$f":"SUM(L5:L20)","v":8.8333333333333339},null,null,"SUMATORIA ACTIVIDADES",{"$f":"SUM(P5:P20)","v":29},null,null,"SUMATORIA ACTIVIDADES",{"$f":"SUM(T5:T20)","v":4.583333333333333},null,null,"SUMATORIA ACTIVIDADES",{"$f":"SUM(X5:X20)","v":193}]
[]
[]
[null,"TRÁMITE:","2. Reserva de denominación de Organizaciones de la Economía Popular y Solidaria.",null,null,"TRÁMITE:","12. Registro de Directivas de entidades del Sector Financiero Popular y Solidario",null,null,"TRÁMITE:","22. Registro de personal estratégico y de apoyo para el control de las entidades del Sector Financiero Popular y Solidario; y, organizaciones de la Economía Popular y Solidaria.",null,null,"TRÁMITE:","32. Autorización de traslado de puntos de atención de entidades del Sector Financiero Popular y Solidario.",null,null,"TRÁMITE:","42. Emisión de certificaciones de información de documentación de acceso público en competencia de la Superintendencia de Economía Popular y Solidaria.",null,null,"TRÁMITE:","52. Atención de consultas jurídicas en el ámbito de competencia de la Superintendencia de Economía Popular y Solidaria"]
[null,"NO.","ACTIVIDAD","TIEMPO (HORAS)",null,"NO.","ACTIVIDAD","TIEMPO (HORAS)",null,"NO.","ACTIVIDAD","TIEMPO (HORAS)",null,"NO.","ACTIVIDAD","TIEMPO (HORAS)",null,"NO.","ACTIVIDAD","TIEMPO (HORAS)",null,"NO.","ACTIVIDAD","TIEMPO (HORAS)"]
[null,1,"Revisar la solicitud  de reserva de denominación ingresada en el aplicativo de \"reservas de denominación\". Si la reserva de denominación cumple con los parámetros establecidos, se da click en aprobar reserva y el sistema automáticamente genera un correo al ciudadano adjuntando el comprobante de aprobación con el cual se puede continuar con el proceso de constitución de la organización.",{"$f":"5/60","v":8.3333333333333329E-2},null,1,"Revisar formulario y requisitos ",{"$f":"30/60","v":0.5},null,1,null,null,null,1,"Asignar trámite al analista",{"$f":"3*8","v":24},null,1,"Revisar solicitud.",{"$f":"10/60","v":0.16666666666666666},null,1,"Validar y registrar la documentación en el SGD",{"$f":"15/60","v":0.25}]
[null,2,"Revisar la solicitud  de reserva de denominación ingresada en el aplicativo de \"reservas de denominación\".\nSi la reserva de denominación no cumple con los parámetros establecidos, se enviará un correo electrónico dirigido al usuario con un link dentro del cuál pordrá verificar las observaciones realizadas, con el objetivo de que realice el ingrese de una nueva solicitud. ",{"$f":"5/60","v":8.3333333333333329E-2},null,2,"Revisar contenido de actas ",2,null,2,null,null,null,2,"Analizar la solicitud de autorización de traslado de puntos de atención.",1,null,2,"Gestionar documentación y/o información. ",1,null,2,"Asignar trámite a la unidad competente",{"$f":"30/60","v":0.5}]
[null,3,null,null,null,3,"Registrar en el sistema GOSF",{"$f":"30/60","v":0.5},null,3,null,null,null,3,"Preparar borrador de resolución.",4,null,3,"Fotocopiar y/o descargar documentos.",1.5,null,3,"Gestionar requerimiento",{"$f":"7200/60","v":120}]
[null,4,null,null,null,4,"Entregar comprobante del registro al usuario.",{"$f":"20/60","v":0.33333333333333331},null,4,null,null,null,4,"Revisar borrador de resolución.",2,null,4,"Elaborar la respuesta a la solicitud del requirente.",{"$f":"30/60","v":0.5},null,4,"Gestionar respuesta sobre la consulta jurídica",{"$f":"(1440*6)/60","v":144}]
[null,5,null,null,null,5,"Enviar los documentos generados a Secretaría General para su archivo.",{"$f":"20/60","v":0.33333333333333331},null,5,null,null,null,5,"Firmar resolución.",1,null,5,"Revisar respuesta a la solicitud del requirente.",{"$f":"20/60","v":0.33333333333333331},null,5,"Gestionar notificación por el canal seleccionado",{"$f":"30/60","v":0.5}]
[null,6,null,null,null,6,null,null,null,6,null,null,null,6,"Notificar al usuario por el canal de notificación seleccionado.",1,null,6,"Firmar oficio o memorando de respuesta y copia certificada.",{"$f":"30/60","v":0.5},null,6]
[null,7,null,null,null,7,null,null,null,7,null,null,null,7,null,null,null,7,null,null,null,7]
[null,8,null,null,null,8,null,null,null,8,null,null,null,8,null,null,null,8,null,null,null,8]
[null,9,null,null,null,9,null,null,null,9,null,null,null,9,null,null,null,9,null,null,null,9]
[null,10,null,null,null,10,null,null,null,10,null,null,null,10,null,null,null,10,null,null,null,10]
[null,11,null,null,null,11,null,null,null,11,null,null,null,11,null,null,null,11,null,null,null,11]
[null,12,null,null,null,12,null,null,null,12,null,null,null,12,null,null,null,12,null,null,null,12]
[null,13,null,null,null,13,null,null,null,13,null,null,null,13,null,null,null,13,null,null,null,13]
[null,14,null,null,null,14,null,null,null,14,null,null,null,14,null,null,null,14,null,null,null,14]
[null,15,null,null,null,15,null,null,null,15,null,null,null,15,null,null,null,15,null,null,null,15]
[]
[null,null,"SUMATORIA ACTIVIDADES",{"$f":"SUM(D26:D41)","v":0.16666666666666666},null,null,"SUMATORIA ACTIVIDADES",{"$f":"SUM(H26:H41)","v":3.666666666666667},null,null,"SUMATORIA ACTIVIDADES",{"$f":"SUM(L26:L41)","v":0},null,null,"SUMATORIA ACTIVIDADES",{"$f":"SUM(P26:P41)","v":33},null,null,"SUMATORIA ACTIVIDADES",{"$f":"SUM(T26:T41)","v":4},null,null,"SUMATORIA ACTIVIDADES",{"$f":"SUM(X26:X41)","v":265.25}]
[]
[]
[null,"TRÁMITE:","3. Constitución de organizaciones de la Economía Popular y Solidaria.",null,null,"TRÁMITE:","13. Calificación de Directivas de entidades del Sector Financiero Popular y Solidario.",null,null,"TRÁMITE:","23. Autorización de productos financieros de las entidades del Sector Financiero Popular y Solidario",null,null,"TRÁMITE:","33.Autorización de cierre de puntos de atención de entidades del Sector Financiero Popular y Solidario.",null,null,"TRÁMITE:","43. Capacitación técnica a entidades del Sector Financiero Popular y Solidario; y, a organizaciones de la Economía Popular y Solidaria.",null,null,"TRÁMITE:","53. Atención de quejas y sugerencias a los servicios que presta la Superintendencia de Economía Popular y Solidaria."]
[null,"NO.","ACTIVIDAD","TIEMPO (HORAS)",null,"NO.","ACTIVIDAD","TIEMPO (HORAS)",null,"NO.","ACTIVIDAD","TIEMPO (HORAS)",null,"NO.","ACTIVIDAD","TIEMPO (HORAS)",null,"NO.","ACTIVIDAD","TIEMPO (HORAS)",null,"NO.","ACTIVIDAD","TIEMPO (HORAS)"]
[null,1,"Receptar requisitos y analizar documentación presentada.",{"$f":"20/60","v":0.33333333333333331},null,1,null,null,null,1,"Asignar trámite al analista",1,null,1,"Asignar trámite al analista",1,null,1,"Revisar la solicitud.",{"$f":"30/60","v":0.5},null,1,"Ingresar requerimiento en el sistema establecido para el efecto\n",{"$f":"30/60","v":0.5}]
[null,2,"Elaborar resolución de constitución.",{"$f":"20/60","v":0.33333333333333331},null,2,null,null,null,2,"Analizar legalmente el requerimiento.",{"$f":"5*4","v":20},null,2,"Revisar requisitos ",1,null,2,"Generar respuesta al trámite.",{"$f":"30/60","v":0.5},null,2,"Asignar trámite a la unidad competente",{"$f":"5/60","v":8.3333333333333329E-2}]
[null,3,"Ingresar información para generación del RUC",{"$f":"10/60","v":0.16666666666666666},null,3,null,null,null,3,"Elaborar y enviar memorando de solicitud de informe al área técnica correspondiente",{"$f":"2*8","v":16},null,3,"Elaborar informe técnico legal y borrador de resolución",{"$f":"1*8","v":8},null,3,"Informar los datos generales de la capacitación.",{"$f":"30/60","v":0.5},null,3,"Gestionar el requerimiento",{"$f":"2*8","v":16}]
[null,4,"Organizar expediente de la organización.",{"$f":"10/60","v":0.16666666666666666},null,4,null,null,null,4,"Elaborar y enviar informe técnico",{"$f":"10*8","v":80},null,4,"Revisar informe técnico legal y borrador de resolución ",6,null,4,"Ejecutar la capacitación.",8,null,4,"Gestionar el oficio de respuesta sobre la sugerencia, queja y/o reconocimiento.",2]
[null,5,"Organizar documentación de entrega al usuario",{"$f":"5/60","v":8.3333333333333329E-2},null,5,null,null,null,5,"Recibir y verificar informe técnico",{"$f":"1*8","v":8},null,5,"Realizar correcciones",4,null,5,"Realizar evaluación de resultados de la capacitación.",5,null,5,"Notificar al usuario el oficio de respuesta sobre la sugerencia, queja y/o reconocimiento, por el canal de notificación seleccionado.",{"$f":"10/60","v":0.16666666666666666}]
[null,6,"Firmar resolución de constitución.",{"$f":"1*8","v":8},null,6,null,null,null,6,"Elaborar y enviar oficio para completar requisitos",{"$f":"1*8","v":8},null,6,"Validar y suscribir informe técnico legal en el cual se recomienda la suscripción de resolución ",3,null,6,null,null,null,6]
[null,7,"Cargar el expediente digital a la herramienta.",{"$f":"10/60","v":0.16666666666666666},null,7,null,null,null,7,"Elaborar informe técnico legal y resolución de autorización ",{"$f":"3*8","v":24},null,7,"Aprobar,suscribir  y enviar la resolución mediante oficio de notificación",1,null,7,null,null,null,7]
[null,8,"Enviar por correo electrónico documentación al usuario.",{"$f":"15/60","v":0.25},null,8,null,null,null,8,"Revisar informe técnico legal y resolución de autorización ",{"$f":"5*8","v":40},null,8,"Registrar cierre de oficina e inactivar código",1,null,8,null,null,null,8]
[null,9,null,null,null,9,null,null,null,9,"Realizar correcciones",{"$f":"2*8","v":16},null,9,null,null,null,9,null,null,null,9]
[null,10,null,null,null,10,null,null,null,10,"Aprobar  informe técnico legal y resolución de autorización ",{"$f":"1*8","v":8},null,10,null,null,null,10,null,null,null,10]
[null,11,null,null,null,11,null,null,null,11,"Suscribir la resolución. ",{"$f":"1*8","v":8},null,11,null,null,null,11,null,null,null,11]
[null,12,null,null,null,12,null,null,null,12,"Notificar al usuario la resolución de autorización para actuar como emisor de tarjeta de crédito",{"$f":"1*8","v":8},null,12,null,null,null,12,null,null,null,12]
[null,13,null,null,null,13,null,null,null,13,null,null,null,13,null,null,null,13,null,null,null,13]
[null,14,null,null,null,14,null,null,null,14,null,null,null,14,null,null,null,14,null,null,null,14]
[null,15,null,null,null,15,null,null,null,15,null,null,null,15,null,null,null,15,null,null,null,15]
[]
[null,null,"SUMATORIA ACTIVIDADES",{"$f":"SUM(D47:D62)","v":9.5},null,null,"SUMATORIA ACTIVIDADES",{"$f":"SUM(H47:H62)","v":0},null,null,"SUMATORIA ACTIVIDADES",{"$f":"SUM(L47:L62)","v":237},null,null,"SUMATORIA ACTIVIDADES",{"$f":"SUM(P47:P62)","v":25},null,null,"SUMATORIA ACTIVIDADES",{"$f":"SUM(T47:T62)","v":14.5},null,null,"SUMATORIA ACTIVIDADES",{"$f":"SUM(X47:X62)","v":18.75}]
[]
[]
[null,"TRÁMITE:","4. Reforma de estatutos de entidades del Sector Financiero  Popular y Solidario.",null,null,"TRÁMITE:","14. Registro de Directivas de organizaciones de la Economía Popular y Solidaria.",null,null,"TRÁMITE:","24. Autorización de servicios financieros de las entidades del Sector Financiero Popular y Solidario",null,null,"TRÁMITE:","34. Registro de horarios y días de suspensión de atención al público de las entidades del Sector Financiero Popular y Solidario.",null,null,"TRÁMITE:","44. Capacitación presencial a entidades del Sector Financiero Popular y Solidario; y, a organizaciones de la Economía Popular y Solidaria.",null,null,"TRÁMITE:","54. Atención a solicitudes de acceso a la información pública (LOTAIP)"]
[null,"NO.","ACTIVIDAD","TIEMPO (HORAS)",null,"NO.","ACTIVIDAD","TIEMPO (HORAS)",null,"NO.","ACTIVIDAD","TIEMPO (HORAS)",null,"NO.","ACTIVIDAD","TIEMPO (HORAS)",null,"NO.","ACTIVIDAD","TIEMPO (HORAS)",null,"NO.","ACTIVIDAD","TIEMPO (HORAS)"]
[null,1,"Asignar trámite al analista",1,null,1,"Revisar la procedencia del registro",2,null,1,"Autorización de apertura de tarjetas de débito\nAsignar trámite al analista",1,null,1,null,null,null,1,null,null,null,1,"Registrar en el sistema establecido para el efecto la solicitud de acceso a información pública y asignar el trámite a la unidad competente para validación.  ",{"$f":"15/60","v":0.25}]
[null,2,"Analizar legalmente el nuevo estatuto.",{"$f":"5*4","v":20},null,2,"Validar con el sistema de DATO SEGURO la suscripción de las firmas de los directivos. ",6,null,2,"Analizar legalmente el requerimiento.",{"$f":"5*4","v":20},null,2,null,null,null,2,null,null,null,2,"Revisar que la solicitud de acceso a la información pública cumpla con los requisitos establecidos.",{"$f":"30/60","v":0.5}]
[null,3,"Elaborar y enviar oficio para completar requisitos",{"$f":"3*8","v":24},null,3,"Validar que los datos reportados por el usuario correspondan a las fechas de nombramiento de los directivos. ",4,null,3,"Elaborar y enviar memorando de solicitud de informe al área técnica correspondiente",{"$f":"2*8","v":16},null,3,null,null,null,3,null,null,null,3,"Asigna el trámite  de solicitud de información pública a la Máxima Autoridad.",{"$f":"10/60","v":0.16666666666666666}]
[null,4,"Elaborar informe técnico legal y resolución de autorización ",{"$f":"3*8","v":24},null,4,"Revisar que el registro de la directiva corresponda a lo determinado en el estatuto de la organización.",4,null,4,"Elaborar y enviar informe técnico",{"$f":"10*8","v":80},null,4,null,null,null,4,null,null,null,4,"Remitir el trámite de solicitud de información pública a la unidad o unidades tecnica(s)/administrativa(s) que corresponda",{"$f":"10/60","v":0.16666666666666666}]
[null,5,"Revisar informe técnico legal y resolución de autorización ",{"$f":"10*8","v":80},null,5,"Revisar que no existan reformas al estatuto de la organización.",2,null,5,"Recibir y verificar informe técnico",{"$f":"1*8","v":8},null,5,null,null,null,5,null,null,null,5,"Gestionar la respuesta de solicitud de información pública",2]
[null,6,"Realizar correcciones",{"$f":"3*8","v":24},null,6,"Revisar que no existan reeleciones consecutivas. ",2,null,6,"Elaborar y enviar oficio para completar requisitos",{"$f":"1*8","v":8},null,6,null,null,null,6,null,null,null,6,"Gestionar notificación por el canal seleccionado",1]
[null,7,"Aprobar  informe técnico legal y resolución de autorización ",{"$f":"1*8","v":8},null,7,"Aprobar registro de la directiva",1,null,7,"Elaborar informe técnico legal y resolución de autorización ",{"$f":"3*8","v":24},null,7,null,null,null,7,null,null,null,7]
[null,8,"Suscribir la resolución. ",{"$f":"1*8","v":8},null,8,"Enviar el comprobante del registro de directiva al usuario.",1,null,8,"Revisar informe técnico legal y resolución de autorización ",{"$f":"5*8","v":40},null,8,null,null,null,8,null,null,null,8]
[null,9,"Notificar al usuario la resolución de aprobación de la reforma de estatutos por el canal de notificación seleccionado.",{"$f":"1*8","v":8},null,9,null,null,null,9,"Realizar correcciones",{"$f":"2*8","v":16},null,9,null,null,null,9,null,null,null,9]
[null,10,null,null,null,10,null,null,null,10,"Aprobar  informe técnico legal y resolución de autorización ",{"$f":"1*8","v":8},null,10,null,null,null,10,null,null,null,10]
[null,11,null,null,null,11,null,null,null,11,"Suscribir la resolución. ",{"$f":"1*8","v":8},null,11,null,null,null,11,null,null,null,11]
[null,12,null,null,null,12,null,null,null,12,"Notificar al usuario la resolución de autorización para actuar como emisor de tarjeta de crédito",{"$f":"1*8","v":8},null,12,null,null,null,12,null,null,null,12]
[null,13,null,null,null,13,null,null,null,13,null,null,null,13,null,null,null,13,null,null,null,13]
[null,14,null,null,null,14,null,null,null,14,null,null,null,14,null,null,null,14,null,null,null,14]
[null,15,null,null,null,15,null,null,null,15,null,null,null,15,null,null,null,15,null,null,null,15]
[]
[null,null,"SUMATORIA ACTIVIDADES",{"$f":"SUM(D68:D83)","v":197},null,null,"SUMATORIA ACTIVIDADES",{"$f":"SUM(H68:H83)","v":22},null,null,"SUMATORIA ACTIVIDADES",{"$f":"SUM(L68:L83)","v":237},null,null,"SUMATORIA ACTIVIDADES",{"$f":"SUM(P68:P83)","v":0},null,null,"SUMATORIA ACTIVIDADES",{"$f":"SUM(T68:T83)","v":0},null,null,"SUMATORIA ACTIVIDADES",{"$f":"SUM(X68:X83)","v":4.083333333333333}]
[null,null,null,{"$f":"+D84/8","v":24.625}]
[]
[null,"TRÁMITE:","5. Reforma de estatutos de organizaciones de la Economía Popular y Solidaria.",null,null,"TRÁMITE:","15. Registro de socios de las entidades del Sector Financiero Popular y Solidario.",null,null,"TRÁMITE:","25. Aprobación de cláusulas obligatorias y prohibiciones de los contratos de adhesión de los servicios financieros",null,null,"TRÁMITE:","35. Autorización de adquisición, ampliación, construcción o conservación de bienes inmuebles para las entidades del Sector Financiero Popular y Solidario",null,null,"TRÁMITE:","45. Atención de denuncias a entidades del Sector Financiero Popular y Solidario; y, a organizaciones de la Economía Popular y Solidaria."]
[null,"NO.","ACTIVIDAD","TIEMPO (HORAS)",null,"NO.","ACTIVIDAD","TIEMPO (HORAS)",null,"NO.","ACTIVIDAD","TIEMPO (HORAS)",null,"NO.","ACTIVIDAD","TIEMPO (HORAS)",null,"NO.","ACTIVIDAD","TIEMPO (HORAS)"]
[null,1,"Receptar requisitos y analizar documentación.",{"$f":"3*8","v":24},null,1,"Proceso automático. ",null,null,1,"Asignar trámite al analista",1,null,1,"Asignar trámite al analista",1,null,1,"Revisar requisitos",{"$f":"2*8","v":16}]
[null,2,"Elaborar el borrador de resolución de reforma de estatutos.",6,null,2,null,null,null,2,"Analizar legalmente el requerimiento.",{"$f":"5*4","v":20},null,2,"Analizar legalmente el requerimiento.",{"$f":"5*4","v":20},null,2,"Enviar a subsanar observaciones",{"$f":"4*8","v":32}]
[null,3,"Analizar el borrador y aprobar.",{"$f":"1*8","v":8},null,3,null,null,null,3,"Elaborar y enviar oficio para completar requisitos",{"$f":"3*8","v":24},null,3,"Elaborar y enviar memorando de solicitud de informe al área técnica correspondiente",{"$f":"2*8","v":16},null,3,"Elaborar y enviar oficio de requerimiento de información ",{"$f":"4*8","v":32}]
[null,4,"Elaborar resolución definitiva.",1,null,4,null,null,null,4,"Elaborar informe técnico legal y resolución de autorización ",{"$f":"3*8","v":24},null,4,"Elaborar y enviar informe técnico",{"$f":"10*8","v":80},null,4,"Analizar la información y documentos de descargo",{"$f":"6*8","v":48}]
[null,5,"Firmar resolución de reforma de estatutos.",1,null,5,null,null,null,5,"Revisar informe técnico legal y resolución de autorización ",{"$f":"7*8","v":56},null,5,"Recibir y verificar informe técnico",{"$f":"1*8","v":8},null,5," Elaborar y enviar oficio motivado al denunciante",{"$f":"5*8","v":40}]
[null,6,"Cargar al sistema la resolución de reforma. ",1,null,6,null,null,null,6,"Realizar correcciones",{"$f":"3*8","v":24},null,6,"Elaborar y enviar oficio para completar requisitos",{"$f":"1*8","v":8},null,6]
[null,7,"Notificar y enviar al usuario la respuesta del requerimiento",1,null,7,null,null,null,7,"Aprobar  informe técnico legal y resolución de autorización ",{"$f":"1*8","v":8},null,7,"Elaborar oficio de autorización",{"$f":"3*8","v":24},null,7]
[null,8,null,null,null,8,null,null,null,8,"Suscribir la resolución. ",{"$f":"1*8","v":8},null,8,"Revisar oficio de autorización",{"$f":"5*8","v":40},null,8]
[null,9,null,null,null,9,null,null,null,9,"Notificar al usuario la resolución de aprobación de cláusulas obligatorias y prohibiciones de los contratos de adhesión. ",{"$f":"1*8","v":8},null,9,"Realizar correcciones",{"$f":"2*8","v":16},null,9]
[null,10,null,null,null,10,null,null,null,10,null,null,null,10,"Aprobar  oficio de autorización",{"$f":"1*8","v":8},null,10]
[null,11,null,null,null,11,null,null,null,11,null,null,null,11,"Suscribir y enviar oficio de autorización. ",{"$f":"1*8","v":8},null,11]
[null,12,null,null,null,12,null,null,null,12,null,null,null,12,null,null,null,12]
[null,13,null,null,null,13,null,null,null,13,null,null,null,13,null,null,null,13]
[null,14,null,null,null,14,null,null,null,14,null,null,null,14,null,null,null,14]
[null,15,null,null,null,15,null,null,null,15,null,null,null,15,null,null,null,15]
[]
[null,null,"SUMATORIA ACTIVIDADES",{"$f":"SUM(D89:D104)","v":42},null,null,"SUMATORIA ACTIVIDADES",{"$f":"SUM(H89:H104)","v":0},null,null,"SUMATORIA ACTIVIDADES",{"$f":"SUM(L89:L104)","v":173},null,null,"SUMATORIA ACTIVIDADES",{"$f":"SUM(P89:P104)","v":229},null,null,"SUMATORIA ACTIVIDADES",{"$f":"SUM(T89:T104)","v":168}]
[]
[]
[null,"TRÁMITE:","6. Liquidación voluntaria de las entidades del Sector Financiero Popular y Solidario.",null,null,"TRÁMITE:","16. Registro de socios de las organizaciones de la Economía Popular y Solidaria",null,null,"TRÁMITE:","26. Autorización para la emisión de obligaciones de largo plazo de las cooperativas de ahorro y crédito y asociaciones mutualistas de ahorro y crédito para vivienda",null,null,"TRÁMITE:","36. Actualización de datos de Buró de Crédito, solicitada por la entidad del Sector Financiero Popular y Solidario, a través de la estructura C60",null,null,"TRÁMITE:","46. Atención de reclamos a entidades del Sector Financiero Popular y Solidario; y, a organizaciones de la Economía Popular y Solidaria."]
[null,"NO.","ACTIVIDAD","TIEMPO (HORAS)",null,"NO.","ACTIVIDAD","TIEMPO (HORAS)",null,"NO.","ACTIVIDAD","TIEMPO (HORAS)",null,"NO.","ACTIVIDAD","TIEMPO (HORAS)",null,"NO.","ACTIVIDAD","TIEMPO (HORAS)"]
[null,1,"Revisar cumplimiento de requisitos",2,null,1,"Revisar la procedencia del registro",2,null,1,"Asignar trámite al analista",1,null,1,"Validar si el requerimiento es solicitado por la entidad del sector financiero o directamente por una persona natural",{"$f":"5/60","v":8.3333333333333329E-2},null,1,"Verificar si el reclamo presentado por el usuario es completo",{"$f":"30/60","v":0.5}]
[null,2,"Solicitar informes técnicos a las áreas correspondientes con el objetivo de determinar si la entidad peticionaria no se encuentra en causal de liquidación forzosa. ",{"$f":"30/60","v":0.5},null,2,"Validar con el sistema de DATO SEGURO la suscripción de las firmas de los directivos. ",6,null,2,"Analizar legalmente el requerimiento.",{"$f":"5*4","v":20},null,2,"Revisar la información que contiene el formulario de requerimiento para validar si cumple con las especificaciones técnicas.",1.5,null,2,"Elaborar oficio de subsanación dirigida al usuario ",1]
[null,3,"Intendencia Nacional de Riesgos: Elaborar y enviar informe técnico",{"$f":"30*8","v":240},null,3,"Validar que los datos reportados por el usuario correspondan a las fechas de ingreso como socio y los datos personales de los socios sean correctos. ",16,null,3,"Gestionar reunión con la entidad",{"$f":"1*8","v":8},null,3,"Solicitar la autorización para el envío con la información del ticket; siempre que el formulario cumpla con las especificaciones técnicas",{"$f":"10/60","v":0.16666666666666666},null,3,"Elaborar y enviar oficio de archivo del reclamo",2]
[null,4,"IN Sector Financiero: Elaborar informe técnico  ",{"$f":"30*8","v":240},null,4,"Enviar el comprobante del registro de socios al usuario.",1,null,4,"Ejecutar reunión con la entidad",2,null,4,"Receptar el requerimiento de autorización para el envío con la información del ticket y aprueba.",{"$f":"10/60","v":0.16666666666666666},null,4,"Elaborar oficio de pedido de información  a la entidad con CC usuario",{"$f":"2*8","v":16}]
[null,5,"En el caso de existir causales de liquidación forsoza:  Elaborar memorando designación de liquidador y solicitud de aprobación para inicio liq. forzosa",2,null,5,null,null,null,5,"Elaborar y enviar memorando de solicitud de informe al área técnica correspondiente",{"$f":"2*8","v":16},null,5,"Generar actividad por parte de la Intendencia Nacional de Tecnologías de la Información y Comunicación (INTIC).",{"$f":"1*8","v":8},null,5,"Verificar la información remitida por la entidad",2]
[null,6,"Autorizar solicitud",8,null,6,null,null,null,6,"Elaborar y enviar informe técnico",{"$f":"10*8","v":80},null,6,"Validar la generación del archivo actualizado.",{"$f":"30/60","v":0.5},null,6,"Analizar y emitir oficio de respuesta ",{"$f":"20*8","v":160}]
[null,7,"En el caso de no existir causales de liquidación forsoza: Elaborar y enviar informe de liquidación voluntaria ",8,null,7,null,null,null,7,"Recibir y verificar informe técnico",{"$f":"1*8","v":8},null,7,"Revisar en el reporte crediticio que los datos se encuentren actualizados.",{"$f":"15/60","v":0.25},null,7,"Elaborar memorando para solicitud de ingreso documental ",3]
[null,8,"Elaborar memorando  de solicitud para iniciar la liquidación voluntaria  con cc a IGJ",2,null,8,null,null,null,8,"Elaborar y enviar oficio para completar requisitos",{"$f":"1*8","v":8},null,8,"Elaborar oficio de aprobación de requerimiento, por parte del analista de la DNGI",{"$f":"15/60","v":0.25},null,8,"Elaborar informe de petición razonada",{"$f":"2*8","v":16}]
[null,9,"Autorizar solicitud  de inicio de liquidación voluntaria",8,null,9,null,null,null,9,"Elaborar informe técnico legal y resolución de autorización ",{"$f":"3*8","v":24},null,9,"Revisar oficio de aprobación de requerimiento, por parte del Director de la DNGI.",{"$f":"20/60","v":0.33333333333333331},null,9,"Enviar oficio al usuario comunicando el inicio del procedimiento administrativo sancionador ",4]
[null,10,"Elaborar y enviar informe jurídico",{"$f":"20*8","v":160},null,10,null,null,null,10,"Revisar informe técnico legal y resolución de autorización ",{"$f":"7*8","v":56},null,10,"Firmar oficio de aprobación de requerimiento, por parte del Intendente de la Intendencia Nacional de Gestión de la Información y Normativa Técnica (INGINT)",{"$f":"10/60","v":0.16666666666666666}]
[null,11,"Elaborar memorando de solicitud de emisión de resolución ",1,null,11,null,null,null,11,"Realizar correcciones",{"$f":"3*8","v":24},null,11]
[null,12,"Emitir resolución para sumilla correspondiente",{"$f":"15*8","v":120},null,12,null,null,null,12,"Aprobar  informe técnico legal y resolución de autorización ",{"$f":"1*8","v":8},null,12]
[null,13,"Sumillar resolución ",1,null,13,null,null,null,13,"Suscribir la resolución. ",{"$f":"1*8","v":8},null,13]
[null,14,"Notificar al representante legal la resolucion de la liquidación y la posesión de liquidador   ",{"$f":"1*8","v":8},null,14,null,null,null,14,"Notificar al usuario la resolución de autorización de emisión de obligaciones",{"$f":"1*8","v":8},null,14]
[null,15,null,null,null,15,null,null,null,15,null,null,null,15]
[]
[null,null,"SUMATORIA ACTIVIDADES",{"$f":"SUM(D110:D125)","v":800.5},null,null,"SUMATORIA ACTIVIDADES",{"$f":"SUM(H110:H125)","v":25},null,null,"SUMATORIA ACTIVIDADES",{"$f":"SUM(L110:L125)","v":271},null,null,"SUMATORIA ACTIVIDADES",{"$f":"SUM(P110:P125)","v":11.416666666666666},null,null,"SUMATORIA ACTIVIDADES",{"$f":"SUM(T110:T125)","v":204.5}]
[]
[]
[null,"TRÁMITE:","7. Liquidación voluntaria de las Organizaciones de la Economía Popular y Solidaria",null,null,"TRÁMITE:","17. Actualización de datos de contacto de las entidades del Sector Financiero Popular y Solidario.",null,null,"TRÁMITE:","27. Emisión de criterio positivo para titularización de las cooperativas de ahorro y crédito y asociaciones mutualistas de ahorro y crédito para vivienda.",null,null,"TRÁMITE:","37. Actualización de datos de Buró de Crédito, solicitada por el socio de las entidades del Sector Financiero Popular y Solidario",null,null,"TRÁMITE:","47. Activación del acceso a los  a los Sistemas de la Superintendencia de Economía Popular y Solidaria."]
[null,"NO.","ACTIVIDAD","TIEMPO (HORAS)",null,"NO.","ACTIVIDAD","TIEMPO (HORAS)",null,"NO.","ACTIVIDAD","TIEMPO (HORAS)",null,"NO.","ACTIVIDAD","TIEMPO (HORAS)",null,"NO.","ACTIVIDAD","TIEMPO (HORAS)"]
[null,1,"Receptar la solicitud de disolución voluntaria",{"$f":"30/60","v":0.5},null,1,"Trámite automatizado. ",0,null,1,"Asignar trámite al analista",1,null,1,"Asignar el requerimiento de actualización de información en el reporte crediticio al analista de la DNGI. ",{"$f":"10/60","v":0.16666666666666666},null,1]
[null,2,"Asignar a un analista de liquidación del sector no financiero.",{"$f":"30/60","v":0.5},null,2,null,null,null,2,"Analizar legalmente el requerimiento.",{"$f":"5*4","v":20},null,2,"Validar si existe un requerimiento ingresado previamente por la entidad.",{"$f":"30/60","v":0.5},null,2]
[null,3,"Revisar la solicitud y documentos de disolución voluntaria, estableciendo si es procedente se inicie o no un proceso de disolución y liquidación voluntaria.",5,null,3,null,null,null,3,"Gestionar reunión con la entidad",{"$f":"1*8","v":8},null,3,"Preparar un oficio al socio indicando que el requerimiento debe ser gestionado por la entidad, este documento se copia al representante legal /gerente de la entidad. ",{"$f":"30/60","v":0.5},null,3]
[null,4," En caso que se requiera completar información, se solicitará a la organización remitir la información faltante que respalde la decisión de iniciar el proceso de liquidación voluntaria.",1,null,4,null,null,null,4,"Ejecutar reunión con la entidad",2,null,4,"Si la entidad hizo el requerimiento y está en gestión de Registro de Datos Crediticios (RDC) de la Superintendencia de Bancos, se prepara un oficio indicando que el requerimiento fue remitido al RDC.",{"$f":"30/60","v":0.5},null,4]
[null,5,"Si la organización no remite la información faltante, se procederá a archivar la solicitud de disolución voluntaria.",1,null,5,null,null,null,5,"Elaborar y enviar memorando de solicitud de informe al área técnica correspondiente",{"$f":"2*8","v":16},null,5,"Revisar oficio de respuesta de requerimiento, por parte del Director de la DNGI. ",{"$f":"15/60","v":0.25},null,5]
[null,6,"En caso de que no se requiera completar información, se analizará la solicitud de disolución voluntaria y los documentos de soporte.",5,null,6,null,null,null,6,"Elaborar y enviar informe técnico",{"$f":"10*8","v":80},null,6,"Firmar oficio de respuesta de requerimiento, por parte del Intendente de la Intendencia Nacional de Gestión de la Información y Normativa Técnica (INGINT).",{"$f":"10/60","v":0.16666666666666666},null,6]
[null,7,"Revisar estados financieros para analizar la factibilidad de pagar honorarios a liquidador.",1,null,7,null,null,null,7,"Recibir y verificar informe técnico",{"$f":"1*8","v":8},null,7,null,null,null,7]
[null,8,"Analizar el borrador del informe técnico y elaborar el informe técnico de inicio de disolución y liquidación con los sustentos legales.",2,null,8,null,null,null,8,"Elaborar y enviar oficio para completar requisitos",{"$f":"1*8","v":8},null,8,null,null,null,8]
[null,9,"Enviar el informe técnico de inicio de disolución y liquidación y resolución de inicio de liquidación voluntaria, mediante SGD, al Intendente Nacional de Fortalecimiento y Mecanismos de Resolución para la respectiva revisión de los documentos anteriormente mencionados.",1,null,9,null,null,null,9,"Elaborar oficio de autorización",{"$f":"3*8","v":24},null,9,null,null,null,9]
[null,10,"En el caso de que se apruebe el informe técnico de inicio de liquidación voluntaria se enviará, mediante SGD, al Intendencia General Técnica con copia a la Intendencia General Jurídica. ",1,null,10,null,null,null,10,"Revisar oficio de autorización",{"$f":"5*8","v":40},null,10,null,null,null,10]
[null,11,"Intendencia General Jurídica revisa el informe técnico.",5,null,11,null,null,null,11,"Realizar correcciones",{"$f":"2*8","v":16},null,11,null,null,null,11]
[null,12,"Intendencia General Jurídica emite informe legal.",3,null,12,null,null,null,12,"Aprobar  oficio de autorización",{"$f":"1*8","v":8},null,12,null,null,null,12]
[null,13,"En caso de ser favorable se elabora el proyecto de resolución.",2,null,13,null,null,null,13,"Suscribir y enviar oficio de autorización. ",{"$f":"1*8","v":8},null,13,null,null,null,13]
[null,14,"Resolución enumerada y firmada.",5,null,14,null,null,null,14,null,null,null,14,null,null,null,14]
[null,15,"Oficios de notificación de resolución.",2,null,15,null,null,null,15,null,null,null,15,null,null,null,15]
[]
[null,null,"SUMATORIA ACTIVIDADES",{"$f":"SUM(D131:D146)","v":35},null,null,"SUMATORIA ACTIVIDADES",{"$f":"SUM(H131:H146)","v":0},null,null,"SUMATORIA ACTIVIDADES",{"$f":"SUM(L131:L146)","v":239},null,null,"SUMATORIA ACTIVIDADES",{"$f":"SUM(P131:P146)","v":2.083333333333333},null,null,"SUMATORIA ACTIVIDADES",{"$f":"SUM(T131:T146)","v":0}]
[]
[]
[null,"TRÁMITE:","8. Reactivación de Cooperativa en proceso de liquidación.",null,null,"TRÁMITE:","18. Actualización de datos de contacto de las organizaciones de la Economía Popular y Solidaria.",null,null,"TRÁMITE:","28. Autorización para la emisión de valores de inscripción genérica.",null,null,"TRÁMITE:","38. Atención de requerimientos de reprocesos de estructuras de información reportadas por las entidades del Sector Financiero Popular y Solidario",null,null,"TRÁMITE:","48. Desactivación del acceso a los  a los Sistemas de la Superintendencia de Economía Popular y Solidaria."]
[null,"NO.","ACTIVIDAD","TIEMPO (HORAS)",null,"NO.","ACTIVIDAD","TIEMPO (HORAS)",null,"NO.","ACTIVIDAD","TIEMPO (HORAS)",null,"NO.","ACTIVIDAD","TIEMPO (HORAS)",null,"NO.","ACTIVIDAD","TIEMPO (HORAS)"]
[null,1,null,null,null,1,"Trámite automatizado. ",0,null,1,"Asignar trámite al analista",1,null,1,"Analizar y verificar el motivo por el que se solicita el reproceso de la estructura y la estructura corregida adjunta.",{"$f":"10/60","v":0.16666666666666666},null,1]
[null,2,null,null,null,2,null,null,null,2,"Analizar legalmente el requerimiento.",{"$f":"5*4","v":20},null,2,"Validar los umbrales técnicos y/o contables.",1,null,2]
[null,3,null,null,null,3,null,null,null,3,"Elaborar y enviar oficio para completar requisitos",{"$f":"1*8","v":8},null,3,"Solicitar mediante memorando a la Intendencia Nacional de Riesgos (INR) el análisis del reproceso de estructura de información; siempre que supere los umbrales técnicos y/o contables.",{"$f":"15/60","v":0.25},null,3]
[null,4,null,null,null,4,null,null,null,4,"Elaborar oficio de autorización",{"$f":"3*8","v":24},null,4,"Revisar el memorando para la INR sobre la solicitud de análisis del reproceso de estructura de información, por parte del Director de la DNGI.",{"$f":"20/60","v":0.33333333333333331},null,4]
[null,5,null,null,null,5,null,null,null,5,"Revisar oficio de autorización",{"$f":"5*8","v":40},null,5,"Firmar el memorando para la INR sobre la solicitud de análisis del reproceso de estructura de información, por parte del Intendente Nacional de Gestión de la Información y Normativa Técnica (INGINT).",{"$f":"10/60","v":0.16666666666666666},null,5]
[null,6,null,null,null,6,null,null,null,6,"Realizar correcciones",{"$f":"2*8","v":16},null,6,"Recibir memorando de análisis del reproceso de estructura de información con su respectiva aprobación/ negación.  ",{"$f":"10/60","v":0.16666666666666666},null,6]
[null,7,null,null,null,7,null,null,null,7,"Aprobar  oficio de autorización",{"$f":"1*8","v":8},null,7,"En el caso de proceder con el reproceso de estructura de información: se solicita a la Intedencia Nacional de Tecnologías de la Información y Comunicación la ejecución del proceso. ",{"$f":"15/60","v":0.25},null,7]
[null,8,null,null,null,8,null,null,null,8,"Suscribir y enviar oficio de autorización. ",{"$f":"1*8","v":8},null,8,"Aprobación/Negación: Enviar oficio de notificación de aprobación/negación del reproceso de estructura de información ",{"$f":"15/60","v":0.25},null,8]
[null,9,null,null,null,9,null,null,null,9,null,null,null,9,"Revisar el oficio de aprobación de requerimiento por parte del Director de la DNGI.",{"$f":"20/60","v":0.33333333333333331},null,9]
[null,10,null,null,null,10,null,null,null,10,null,null,null,10,"Firmar oficio de aprobación del requerimiento por parte del Intendente de la Intendencia Nacional de Gestión de la Información y Normativa Técnica (INGINT).",{"$f":"10/60","v":0.16666666666666666},null,10]
[null,11,null,null,null,11,null,null,null,11,null,null,null,11,null,null,null,11]
[null,12,null,null,null,12,null,null,null,12,null,null,null,12,null,null,null,12]
[null,13,null,null,null,13,null,null,null,13,null,null,null,13,null,null,null,13]
[null,14,null,null,null,14,null,null,null,14,null,null,null,14,null,null,null,14]
[null,15,null,null,null,15,null,null,null,15,null,null,null,15,null,null,null,15]
[]
[null,null,"SUMATORIA ACTIVIDADES",{"$f":"SUM(D152:D167)","v":0},null,null,"SUMATORIA ACTIVIDADES",{"$f":"SUM(H152:H167)","v":0},null,null,"SUMATORIA ACTIVIDADES",{"$f":"SUM(L152:L167)","v":125},null,null,"SUMATORIA ACTIVIDADES",{"$f":"SUM(P152:P167)","v":3.0833333333333335},null,null,"SUMATORIA ACTIVIDADES",{"$f":"SUM(T152:T167)","v":0}]
[]
[]
[null,"TRÁMITE:","9. Calificación de Compañías y Organizaciones de Servicios Auxiliares para las entidades del Sector Financiero Popular y Solidario.",null,null,"TRÁMITE:","19. Actualización de datos de contacto de los auditores de las entidades del Sector Financiero Popular y Solidario; y, organizaciones de la Economía Popular y Solidaria",null,null,"TRÁMITE:","29. Autorización de emisión de certificados de aportación para Mutualistas",null,null,"TRÁMITE:","39. Atención de requerimientos de prórroga para el reporte de información de las entidades del Sector Financiero Popular y Solidario.",null,null,"TRÁMITE:","49. Restablecimiento del acceso a los  a los Sistemas de la Superintendencia de Economía Popular y Solidaria."]
[null,"NO.","ACTIVIDAD","TIEMPO (HORAS)",null,"NO.","ACTIVIDAD","TIEMPO (HORAS)",null,"NO.","ACTIVIDAD","TIEMPO (HORAS)",null,"NO.","ACTIVIDAD","TIEMPO (HORAS)",null,"NO.","ACTIVIDAD","TIEMPO (HORAS)"]
[null,1,"Revisar requisitos ",1,null,1,null,null,null,1,"Asignar trámite al analista",1,null,1,"Verificar el correo de aprobación o negación de la prórroga. ",{"$f":"10/60","v":0.16666666666666666},null,1]
[null,2,"Calcular índice de solvencia ",{"$f":"30/60","v":0.5},null,2,null,null,null,2,"Analizar legalmente el requerimiento.",{"$f":"5*4","v":20},null,2,null,null,null,2]
[null,3,"Elaborar informe técnico legal y borrador de resolución",1,null,3,null,null,null,3,"Elaborar y enviar memorando de solicitud de informe al área técnica correspondiente",{"$f":"2*8","v":16},null,3,null,null,null,3]
[null,4,"Revisar informe técnico legal y borrador de resolución ",{"$f":"15/60","v":0.25},null,4,null,null,null,4,"Elaborar y enviar informe técnico",{"$f":"10*8","v":80},null,4,null,null,null,4]
[null,5,"Realizar correcciones",{"$f":"30/60","v":0.5},null,5,null,null,null,5,"Recibir y verificar informe técnico",{"$f":"1*8","v":8},null,5,null,null,null,5]
[null,6,"Validar y suscribir informe técnico legal en el cual se recomienda la suscripción de resolución ",{"$f":"30/60","v":0.5},null,6,null,null,null,6,"Elaborar y enviar oficio para completar requisitos",{"$f":"1*8","v":8},null,6,null,null,null,6]
[null,7,"Aprobar,suscribir  y enviar la resolución mediante oficio de notificación",{"$f":"30/60","v":0.5},null,7,null,null,null,7,"Elaborar informe técnico legal y resolución de autorización ",{"$f":"3*8","v":24},null,7,null,null,null,7]
[null,8,"Solicitar registro de resolución en base de datos ",{"$f":"15/60","v":0.25},null,8,null,null,null,8,"Revisar informe técnico legal y resolución de autorización ",{"$f":"5*8","v":40},null,8,null,null,null,8]
[null,9," Solicitar publicación de  listado de compañias en la página institucional ",{"$f":"15/60","v":0.25},null,9,null,null,null,9,"Realizar correcciones",{"$f":"2*8","v":16},null,9,null,null,null,9]
[null,10,null,null,null,10,null,null,null,10,"Aprobar  informe técnico legal y resolución de autorización ",{"$f":"1*8","v":8},null,10,null,null,null,10]
[null,11,null,null,null,11,null,null,null,11,"Suscribir la resolución. ",{"$f":"1*8","v":8},null,11,null,null,null,11]
[null,12,null,null,null,12,null,null,null,12,"Notificar al usuario la resolución de aprobación de cláusulas obligatorias y prohibiciones de los contratos de adhesión. ",{"$f":"1*8","v":8},null,12,null,null,null,12]
[null,13,null,null,null,13,null,null,null,13,null,null,null,13,null,null,null,13]
[null,14,null,null,null,14,null,null,null,14,null,null,null,14,null,null,null,14]
[null,15,null,null,null,15,null,null,null,15,null,null,null,15,null,null,null,15]
[]
[null,null,"SUMATORIA ACTIVIDADES",{"$f":"SUM(D173:D188)","v":4.75},null,null,"SUMATORIA ACTIVIDADES",{"$f":"SUM(H173:H188)","v":0},null,null,"SUMATORIA ACTIVIDADES",{"$f":"SUM(L173:L188)","v":237},null,null,"SUMATORIA ACTIVIDADES",{"$f":"SUM(P173:P188)","v":0.16666666666666666},null,null,"SUMATORIA ACTIVIDADES",{"$f":"SUM(T173:T188)","v":0}]
[]
[]
[null,"TRÁMITE:","10. Calificación de entidades financieras internacionales que proveen recursos a las entidades del Sector Financiero Popular y Solidario.",null,null,"TRÁMITE:","20. Actualización de datos de Oficiales de Cumplimiento",null,null,"TRÁMITE:","30. Autorización para invertir en títulos valores ",null,null,"TRÁMITE:","40. Atención de requerimientos de administración de controles de las estructuras de información reportadas por las entidades del Sector Financiero Popular y Solidario.",null,null,"TRÁMITE:","50. Atención de consultas de información general en el ámbito de competencia de la Superintendencia de Economía Popular y Solidaria"]
[null,"NO.","ACTIVIDAD","TIEMPO (HORAS)",null,"NO.","ACTIVIDAD","TIEMPO (HORAS)",null,"NO.","ACTIVIDAD","TIEMPO (HORAS)",null,"NO.","ACTIVIDAD","TIEMPO (HORAS)",null,"NO.","ACTIVIDAD","TIEMPO (HORAS)"]
[null,1,"Asignar trámite al analista",1,null,1,null,null,null,1,"Asignar trámite al analista",1,null,1,"Analizar y verificar el motivo por el que se solicita la administración de control de la estructura y el acuse de validación.",{"$f":"10/60","v":0.16666666666666666},null,1,"Receptar y validar consulta",{"$f":"2/60","v":3.3333333333333333E-2}]
[null,2,"Analizar legalmente los requisitos",{"$f":"5*4","v":20},null,2,null,null,null,2,"Analizar legalmente el requerimiento.",{"$f":"5*4","v":20},null,2,"Validar los umbrales técnicos y/o contables.",1,null,2,"Revisar repositorio de consultas en los casos que aplique",{"$f":"10/60","v":0.16666666666666666}]
[null,3,"Elaborar y enviar oficio para completar requisitos",{"$f":"3*8","v":24},null,3,null,null,null,3,"Gestionar reunión con la entidad",{"$f":"1*8","v":8},null,3,"Solicitar mediante memorando a la Intendencia Nacional de Riesgos (INR) el análisis de la administración de control de validación de estructuras; siempre que supere los umbrales técnicos y/o contables.",{"$f":"15/60","v":0.25},null,3,"Emitir respuesta de la consulta general al usuario externo",{"$f":"3/60","v":0.05}]
[null,4,"Elaborar informe técnico legal y resolución de autorización ",{"$f":"3*8","v":24},null,4,null,null,null,4,"Ejecutar reunión con la entidad",2,null,4,"Revisar el memorando para la INR sobre la solicitud de análisis de administración de control, por parte del Director de la DNGI.",{"$f":"20/60","v":0.33333333333333331},null,4]
[null,5,"Revisar informe técnico legal y resolución de autorización ",{"$f":"5*8","v":40},null,5,null,null,null,5,"Elaborar y enviar memorando de solicitud de informe al área técnica correspondiente",{"$f":"2*8","v":16},null,5,"Firmar el memorando para la INR sobre la solicitud de análisis de administración de control, por parte del Intendente Nacional de Gestión de la Información y Normativa Técnica (INGINT).",{"$f":"10/60","v":0.16666666666666666},null,5]
[null,6,"Realizar correcciones",{"$f":"3*8","v":24},null,6,null,null,null,6,"Elaborar y enviar informe técnico",{"$f":"10*8","v":80},null,6,"Recibir memorando de análisis de administración de control con su respectiva aprobación/ negación.  ",{"$f":"10/60","v":0.16666666666666666},null,6]
[null,7,"Aprobar  informe técnico legal y resolución de autorización ",{"$f":"1*8","v":8},null,7,null,null,null,7,"Recibir y verificar informe técnico",{"$f":"1*8","v":8},null,7,"En el caso de proceder con la administración de control: se solicita a la Intedencia Nacional de Tecnologías de la Información y Comunicación la ejecución del proceso. ",{"$f":"15/60","v":0.25},null,7]
[null,8,"Suscribir la resolución. ",{"$f":"1*8","v":8},null,8,null,null,null,8,"Elaborar y enviar oficio para completar requisitos",{"$f":"1*8","v":8},null,8,"Aprobación/Negación: Enviar oficio de notificación de aprobación/negación de la administración de control. ",{"$f":"15/60","v":0.25},null,8]
[null,9,"Notificar al usuario la resolución de calificación como entidad financiera internacional que proveen recursos a las entidades del Sector Financiero Popular y Solidario ",{"$f":"1*8","v":8},null,9,null,null,null,9,"Elaborar oficio de autorización",{"$f":"3*8","v":24},null,9,null,null,null,9]
[null,10,"Registrar en el sistema GOSF",1,null,10,null,null,null,10,"Revisar oficio de autorización",{"$f":"5*8","v":40},null,10,null,null,null,10]
[null,11,"Solicitar publicación de  listado de entidades en la página institucional ",8,null,11,null,null,null,11,"Realizar correcciones",{"$f":"2*8","v":16},null,11,null,null,null,11]
[null,12,null,null,null,12,null,null,null,12,"Aprobar  oficio de autorización",{"$f":"1*8","v":8},null,12,null,null,null,12]
[null,13,null,null,null,13,null,null,null,13,"Suscribir y enviar oficio de autorización. ",{"$f":"1*8","v":8},null,13,null,null,null,13]
[null,14,null,null,null,14,null,null,null,14,null,null,null,14,null,null,null,14]
[null,15,null,null,null,15,null,null,null,15,null,null,null,15,null,null,null,15]
[]
[null,null,"SUMATORIA ACTIVIDADES",{"$f":"SUM(D194:D209)","v":166},null,null,"SUMATORIA ACTIVIDADES",{"$f":"SUM(H194:H209)","v":0},null,null,"SUMATORIA ACTIVIDADES",{"$f":"SUM(L194:L209)","v":239},null,null,"SUMATORIA ACTIVIDADES",{"$f":"SUM(P194:P209)","v":2.5833333333333335},null,null,"SUMATORIA ACTIVIDADES",{"$f":"SUM(T194:T209)","v":0.25}]
[null,null,null,null,null,null,null,null,null,null,null,null,null,null,null,null,null,null,null,{"$f":"+T210*60","v":15}]

{"sheet":"TIEMPO DE RESPUESTA","index":6,"n_rows":48,"n_cols":4,"rows_kept":48,"cut":false,"hidden":false,"merged":[[0,0,0,3],[1,0,1,3]]}
["PRIORIZACIÓN DE TRÁMITES ADMINISTRATIVOS"]
["TIEMPO DE RESPUESTA"]
[]
["IDENTIFICADOR","TRÁMITE","TIEMPO RESPUESTA (horas laborables)","PUNTUACIÓN"]
[null,"Autorización para invertir en títulos valores ",360,30]
[null,"Reserva de denominación de entidades del Sector Financiero Popular y Solidario.",40,0]
[null,"Liquidación voluntaria de las entidades del Sector Financiero Popular y Solidario.",1440,30]
[null,"Atención de quejas y sugerencias a los servicios que presta la Superintendencia de Economía Popular y Solidaria.",160,30]
[null,"Autorización de emisión de certificados de aportación para Mutualistas.",360,30]
[null,"Emisión de criterio positivo para titularización de las cooperativas de ahorro y crédito y asociaciones mutualistas de ahorro y crédito para vivienda.",360,30]
[null,"Autorización para la emisión de valores de inscripción genérica.",360,30]
[null,"Autorización para la emisión de obligaciones de largo plazo de las cooperativas de ahorro y crédito y asociaciones mutualistas de ahorro y crédito para vivienda.",360,30]
[null,"Autorización de cierre de puntos de atención de entidades del Sector Financiero Popular y Solidario.",240,30]
[null,"Calificación de entidades no financieras especializadas que proveen recursos a las entidades del Sector Financiero Popular y Solidario.",240,30]
[null,"Autorización de productos financieros de las entidades del Sector Financiero Popular y Solidario",360,30]
[null,"Calificación de entidades financieras internacionales que proveen recursos a las entidades del Sector Financiero Popular y Solidario.",240,30]
[null,"Aprobación de cláusulas obligatorias y prohibiciones de los contratos de adhesión de los servicios financieros",360,30]
[null,"Capacitación técnica a entidades del Sector Financiero Popular y Solidario; y, a organizaciones de la Economía Popular y Solidaria.",240,30]
[null,"Atención a solicitudes de acceso a la información pública (LOTAIP)",120,30]
[null,"Autorización de adquisición, ampliación, construcción o conservación de bienes inmuebles para las entidades del Sector Financiero Popular y Solidario",240,30]
[null,"Actualización de datos de Buró de Crédito, solicitada por el socio de las entidades del Sector Financiero Popular y Solidario",64,30]
[null,"Actualización de datos de Buró de Crédito, solicitada por la entidad del Sector Financiero Popular y Solidario, a través de la estructura C60",120,30]
[null,"Calificación de Compañías y Organizaciones de Servicios Auxiliares para las entidades del Sector Financiero Popular y Solidario.",200,30]
[null,"Autorización de servicios financieros de las entidades del Sector Financiero Popular y Solidario",480,30]
[null,"Liquidación voluntaria de las Organizaciones de la Economía Popular y Solidaria.",720,30]
[null,"Reforma de estatutos de entidades del Sector Financiero  Popular y Solidario.",360,30]
[null,"Registro de socios de las entidades del Sector Financiero Popular y Solidario.",8.3000000000000004E-2,0]
[null,"Actualización de datos de contacto de las entidades del Sector Financiero Popular y Solidario.",0.16,0]
[null,"Autorización de traslado de puntos de atención de entidades del Sector Financiero Popular y Solidario.",360,30]
[null,"Autorización de apertura de puntos de atención de entidades del Sector Financiero Popular y Solidario.",240,30]
[null,"Atención de consultas jurídicas en el ámbito de competencia de la Superintendencia de Economía Popular y Solidaria",120,30]
[null,"Atención de consultas técnicas y/o legales en el ámbito de competencia de la Superintendencia de Economía Popular y Solidaria",240,30]
[null,"Reforma de estatutos de organizaciones de la Economía Popular y Solidaria.",96,30]
[null,"Calificación de personal estratégico y de apoyo para el control de las entidades del Sector Financiero Popular y Solidario; y, organizaciones de la Economía Popular y Solidaria.",64,30]
[null,"Atención de requerimientos de reprocesos de estructuras de información reportadas por las entidades del Sector Financiero Popular y Solidario.",96,30]
[null,"Atención de reclamos a entidades del Sector Financiero Popular y Solidario; y, a organizaciones de la Economía Popular y Solidaria.",1440,30]
[null,"Constitución de organizaciones de la Economía Popular y Solidaria.",240,30]
[null,"Registro de Directivas de entidades del Sector Financiero Popular y Solidario.",120,30]
[null,"Actualización de datos de contacto de las organizaciones de la Economía Popular y Solidaria.",0.16,0]
[null,"Atención de denuncias a entidades del Sector Financiero Popular y Solidario; y, a organizaciones de la Economía Popular y Solidaria.",1440,30]
[null,"Emisión de copias certificadas de documentación de acceso público en competencia de la Superintendencia de Economía Popular y Solidaria.",80,30]
[null,"Atención de requerimientos de administración de controles de las estructuras de información reportadas por las entidades del Sector Financiero Popular y Solidario.",96,30]
[null,"Atención de requerimientos de prórroga para el reporte de información de las entidades del Sector Financiero Popular y Solidario.",0.5,0]
[null,"Emisión de certificaciones de información de documentación de acceso público en competencia de la Superintendencia de Economía Popular y Solidaria.",80,30]
[null,"Reserva de denominación de Organizaciones de la Economía Popular y Solidaria.",40,0]
[null,"Registro de Directivas de organizaciones de la Economía Popular y Solidaria.",56,30]
[null,"Registro de socios de las organizaciones de la Economía Popular y Solidaria.",56,30]
[null,"Atención de consultas de información general en el ámbito de competencia de la Superintendencia de Economía Popular y Solidaria",0.25,0]

{"sheet":"CANAL ATENCIÓN","index":7,"n_rows":51,"n_cols":12,"rows_kept":51,"cut":false,"hidden":false,"merged":[[0,0,0,3],[1,0,1,3]]}
["PRIORIZACIÓN DE TRÁMITES ADMINISTRATIVOS"]
["CANAL DE ATENCIÓN"]
[null,null,null,null,null,null,null,null,"Totalmente en Línea",null,null,0]
["IDENTIFICADOR","TRÁMITE","CANAL ATENCIÓN","PUNTUACIÓN",null,null,null,null,"No se completa totalmente en línea.",null,null,10]
[null,"Autorización para invertir en títulos valores ","Totalmente en Línea",{"$f":"IF(ISBLANK(C5),\"\",IF(C5=\"Totalmente en línea\",0,IF(C5=\"Inicia en línea\",6,10)))","v":0}]
[null,"Reserva de denominación de entidades del Sector Financiero Popular y Solidario.","Totalmente en Línea",{"$f":"IF(ISBLANK(C6),\"\",IF(C6=\"Totalmente en línea\",0,IF(C6=\"Inicia en línea\",6,10)))","v":0}]
[null,"Liquidación voluntaria de las entidades del Sector Financiero Popular y Solidario.","Totalmente en Línea",0]
[null,"Atención de quejas y sugerencias a los servicios que presta la Superintendencia de Economía Popular y Solidaria.","Totalmente en Línea",0]
[null,"Autorización de emisión de certificados de aportación para Mutualistas.","Totalmente en Línea",0]
[null,"Emisión de criterio positivo para titularización de las cooperativas de ahorro y crédito y asociaciones mutualistas de ahorro y crédito para vivienda.","Totalmente en Línea",0]
[null,"Autorización para la emisión de valores de inscripción genérica.","Totalmente en Línea",0]
[null,"Autorización para la emisión de obligaciones de largo plazo de las cooperativas de ahorro y crédito y asociaciones mutualistas de ahorro y crédito para vivienda.","Totalmente en Línea",0]
[null,"Autorización de cierre de puntos de atención de entidades del Sector Financiero Popular y Solidario.","Totalmente en Línea",0]
[null,"Calificación de entidades no financieras especializadas que proveen recursos a las entidades del Sector Financiero Popular y Solidario.","Totalmente en Línea",0]
[null,"Autorización de productos financieros de las entidades del Sector Financiero Popular y Solidario","Totalmente en Línea",0]
[null,"Calificación de entidades financieras internacionales que proveen recursos a las entidades del Sector Financiero Popular y Solidario.","Totalmente en Línea",0]
[null,"Aprobación de cláusulas obligatorias y prohibiciones de los contratos de adhesión de los servicios financieros","Totalmente en Línea",0]
[null,"Capacitación técnica a entidades del Sector Financiero Popular y Solidario; y, a organizaciones de la Economía Popular y Solidaria.","Totalmente en Línea",0]
[null,"Atención a solicitudes de acceso a la información pública (LOTAIP)","Totalmente en Línea",0]
[null,"Autorización de adquisición, ampliación, construcción o conservación de bienes inmuebles para las entidades del Sector Financiero Popular y Solidario","Totalmente en Línea",0]
[null,"Actualización de datos de Buró de Crédito, solicitada por el socio de las entidades del Sector Financiero Popular y Solidario","Totalmente en Línea",0]
[null,"Actualización de datos de Buró de Crédito, solicitada por la entidad del Sector Financiero Popular y Solidario, a través de la estructura C60","Totalmente en Línea",0]
[null,"Calificación de Compañías y Organizaciones de Servicios Auxiliares para las entidades del Sector Financiero Popular y Solidario.","Totalmente en Línea",0]
[null,"Autorización de servicios financieros de las entidades del Sector Financiero Popular y Solidario","Totalmente en Línea",0]
[null,"Liquidación voluntaria de las Organizaciones de la Economía Popular y Solidaria.","Totalmente en Línea",0]
[null,"Reforma de estatutos de entidades del Sector Financiero  Popular y Solidario.","Totalmente en Línea",0]
[null,"Registro de socios de las entidades del Sector Financiero Popular y Solidario.","Totalmente en Línea",0]
[null,"Actualización de datos de contacto de las entidades del Sector Financiero Popular y Solidario.","Totalmente en Línea",0]
[null,"Autorización de traslado de puntos de atención de entidades del Sector Financiero Popular y Solidario.","Totalmente en Línea",0]
[null,"Autorización de apertura de puntos de atención de entidades del Sector Financiero Popular y Solidario.","Totalmente en Línea",0]
[null,"Atención de consultas jurídicas en el ámbito de competencia de la Superintendencia de Economía Popular y Solidaria","Totalmente en Línea",0]
[null,"Atención de consultas técnicas y/o legales en el ámbito de competencia de la Superintendencia de Economía Popular y Solidaria","Totalmente en Línea",0]
[null,"Reforma de estatutos de organizaciones de la Economía Popular y Solidaria.","Totalmente en Línea",0]
[null,"Calificación de personal estratégico y de apoyo para el control de las entidades del Sector Financiero Popular y Solidario; y, organizaciones de la Economía Popular y Solidaria.","Totalmente en Línea",0]
[null,"Atención de requerimientos de reprocesos de estructuras de información reportadas por las entidades del Sector Financiero Popular y Solidario.","Totalmente en Línea",0]
[null,"Atención de reclamos a entidades del Sector Financiero Popular y Solidario; y, a organizaciones de la Economía Popular y Solidaria.","Totalmente en Línea",0]
[null,"Constitución de organizaciones de la Economía Popular y Solidaria.","Totalmente en Línea",0]
[null,"Registro de Directivas de entidades del Sector Financiero Popular y Solidario.","Totalmente en Línea",0]
[null,"Actualización de datos de contacto de las organizaciones de la Economía Popular y Solidaria.","Totalmente en Línea",0]
[null,"Atención de denuncias a entidades del Sector Financiero Popular y Solidario; y, a organizaciones de la Economía Popular y Solidaria.","Totalmente en Línea",0]
[null,"Emisión de copias certificadas de documentación de acceso público en competencia de la Superintendencia de Economía Popular y Solidaria.","Totalmente en Línea",0]
[null,"Atención de requerimientos de administración de controles de las estructuras de información reportadas por las entidades del Sector Financiero Popular y Solidario.","Totalmente en Línea",0]
[null,"Atención de requerimientos de prórroga para el reporte de información de las entidades del Sector Financiero Popular y Solidario.","Totalmente en Línea",0]
[null,"Emisión de certificaciones de información de documentación de acceso público en competencia de la Superintendencia de Economía Popular y Solidaria.","Totalmente en Línea",0]
[null,"Reserva de denominación de Organizaciones de la Economía Popular y Solidaria.","Totalmente en Línea",0]
[null,"Registro de Directivas de organizaciones de la Economía Popular y Solidaria.","Totalmente en Línea",0]
[null,"Registro de socios de las organizaciones de la Economía Popular y Solidaria.","Totalmente en Línea",0]
[null,"Atención de consultas de información general en el ámbito de competencia de la Superintendencia de Economía Popular y Solidaria","Totalmente en Línea",{"$f":"IF(ISBLANK(C48),\"\",IF(C48=\"Totalmente en línea\",0,IF(C48=\"Inicia en línea\",6,10)))","v":0}]
[null,null,null,""]
[null,null,null,""]
[null,null,null,""]

{"sheet":"RESUMEN","index":8,"n_rows":53,"n_cols":25,"rows_kept":53,"cut":false,"hidden":false,"merged":[[1,0,2,0],[1,1,2,1],[1,2,2,2],[1,3,2,3],[1,4,2,4],[1,9,1,10],[1,11,1,12],[1,13,2,13],[0,2,0,6],[0,7,0,12],[1,5,2,5],[1,6,2,6],[1,7,1,8]]}
[null,null,"BÁSICOS",null,null,null,null,"ADICIONALES"]
["ID trámite","Nombre del trámite","Demanda","Quejas","Costo para administración","Tiempo de respuesta","Canal de atención","Necesidades ciudadanas",null,"Susceptibilidad a corrupción",null,"Volumen de devoluciones",null,"PUNTAJE TOTAL"]
[null,null,null,null,null,null,null,"Criterio","Puntuación","Criterio","Puntuación","Criterio","Puntuación",null,null,null,null,null,null,null,"demanda",0,3,6,10]
[null,"Autorización para invertir en títulos valores ",0,0,20,30,0,"NO",{"$f":"IF(H4=\"SI\",5,0)","v":0},"NO",{"$f":"IF(J4=\"SI\",10,0)","v":0},"NO",{"$f":"IF(L4=\"SI\",5,0)","v":0},{"$f":"SUM(C4:G4,I4,K4,M4)","v":50},null,null,null,null,null,null,"quejas",0,4,10]
[null,"Reserva de denominación de entidades del Sector Financiero Popular y Solidario.",0,0,null,0,0,"NO",{"$f":"IF(H5=\"SI\",5,0)","v":0},"NO",{"$f":"IF(J5=\"SI\",10,0)","v":0},"NO",{"$f":"IF(L5=\"SI\",5,0)","v":0},{"$f":"SUM(C5:G5,I5,K5,M5)","v":0}]
[null,"Liquidación voluntaria de las entidades del Sector Financiero Popular y Solidario.",3,0,20,30,0,"NO",0,"NO",0,"NO",0,{"$f":"SUM(C6:G6,I6,K6,M6)","v":53},null,null,null,null,null,null,"cpa",5,10,20]
[null,"Atención de quejas y sugerencias a los servicios que presta la Superintendencia de Economía Popular y Solidaria.",3,0,10,30,0,"NO",0,"NO",0,"NO",0,43,null,null,null,null,null,null,"tr",0,30]
[null,"Autorización de emisión de certificados de aportación para Mutualistas.",3,0,20,30,0,"NO",0,"NO",0,"NO",0,53,null,null,null,null,null,null,"ca",0,10]
[null,"Emisión de criterio positivo para titularización de las cooperativas de ahorro y crédito y asociaciones mutualistas de ahorro y crédito para vivienda.",3,0,20,30,0,"NO",0,"NO",0,"NO",0,53]
[null,"Autorización para la emisión de valores de inscripción genérica.",3,0,10,30,0,"NO",0,"NO",0,"NO",0,43,null,null,null,null,null,null,"cpa",5,10,20]
[null,"Autorización para la emisión de obligaciones de largo plazo de las cooperativas de ahorro y crédito y asociaciones mutualistas de ahorro y crédito para vivienda.",3,0,20,30,0,"NO",0,"NO",0,"NO",0,53,null,null,null,null,null,null,"tr",0,30]
[null,"Autorización de cierre de puntos de atención de entidades del Sector Financiero Popular y Solidario.",3,0,10,30,0,"NO",0,"NO",0,"NO",0,43,null,null,null,null,null,null,"ca",0,10]
[null,"Calificación de entidades no financieras especializadas que proveen recursos a las entidades del Sector Financiero Popular y Solidario.",3,0,10,30,0,"NO",0,"NO",0,"NO",0,43]
[null,"Autorización de productos financieros de las entidades del Sector Financiero Popular y Solidario",3,0,20,30,0,"NO",0,"NO",0,"NO",0,53,null,null,null,null,null,null,"cpa",5,10,20]
[null,"Calificación de entidades financieras internacionales que proveen recursos a las entidades del Sector Financiero Popular y Solidario.",3,0,10,30,0,"NO",0,"NO",0,"NO",0,43,null,null,null,null,null,null,"tr",0,30]
[null,"Aprobación de cláusulas obligatorias y prohibiciones de los contratos de adhesión de los servicios financieros",3,0,20,30,0,"NO",0,"NO",0,"NO",0,53,null,null,null,null,null,null,"ca",0,10]
[null,"Capacitación técnica a entidades del Sector Financiero Popular y Solidario; y, a organizaciones de la Economía Popular y Solidaria.",3,0,10,30,0,"NO",0,"NO",0,"NO",0,43]
[null,"Atención a solicitudes de acceso a la información pública (LOTAIP)",3,0,5,30,0,"NO",0,"NO",0,"NO",0,38,null,null,null,null,null,null,"cpa",5,10,20]
[null,"Autorización de adquisición, ampliación, construcción o conservación de bienes inmuebles para las entidades del Sector Financiero Popular y Solidario",3,0,20,30,0,"NO",0,"NO",0,"NO",0,53,null,null,null,null,null,null,"tr",0,30]
[null,"Actualización de datos de Buró de Crédito, solicitada por el socio de las entidades del Sector Financiero Popular y Solidario",6,0,5,30,0,"NO",0,"NO",0,"NO",0,41,null,null,null,null,null,null,"ca",0,10]
[null,"Actualización de datos de Buró de Crédito, solicitada por la entidad del Sector Financiero Popular y Solidario, a través de la estructura C60",6,0,10,30,0,"NO",0,"NO",0,"NO",0,46]
[null,"Calificación de Compañías y Organizaciones de Servicios Auxiliares para las entidades del Sector Financiero Popular y Solidario.",6,0,5,30,0,"NO",0,"NO",0,"NO",0,41,null,null,null,null,null,null,"cpa",5,10,20]
[null,"Autorización de servicios financieros de las entidades del Sector Financiero Popular y Solidario",6,0,20,30,0,"NO",0,"NO",0,"NO",0,56,null,null,null,null,null,null,"tr",0,30]
[null,"Liquidación voluntaria de las Organizaciones de la Economía Popular y Solidaria.",6,0,10,30,0,"NO",0,"NO",0,"NO",0,46,null,null,null,null,null,null,"ca",0,10]
[null,"Reforma de estatutos de entidades del Sector Financiero  Popular y Solidario.",6,0,20,30,0,"NO",0,"NO",0,"NO",0,56]
[null,"Registro de socios de las entidades del Sector Financiero Popular y Solidario.",6,0,null,0,0,"NO",0,"NO",0,"NO",0,6,null,null,null,null,null,null,"cpa",5,10,20]
[null,"Actualización de datos de contacto de las entidades del Sector Financiero Popular y Solidario.",6,0,null,0,0,"NO",0,"NO",0,"NO",0,6,null,null,null,null,null,null,"tr",0,30]
[null,"Autorización de traslado de puntos de atención de entidades del Sector Financiero Popular y Solidario.",6,0,10,30,0,"NO",0,"NO",0,"NO",0,46,null,null,null,null,null,null,"ca",0,10]
[null,"Autorización de apertura de puntos de atención de entidades del Sector Financiero Popular y Solidario.",6,0,10,30,0,"NO",0,"NO",0,"NO",0,46]
[null,"Atención de consultas jurídicas en el ámbito de competencia de la Superintendencia de Economía Popular y Solidaria",6,0,20,30,0,"NO",0,"NO",0,"NO",0,56,null,null,null,null,null,null,"cpa",5,10,20]
[null,"Atención de consultas técnicas y/o legales en el ámbito de competencia de la Superintendencia de Economía Popular y Solidaria",6,0,20,30,0,"NO",0,"NO",0,"NO",0,56,null,null,null,null,null,null,"tr",0,30]
[null,"Reforma de estatutos de organizaciones de la Economía Popular y Solidaria.",6,0,10,30,0,"NO",0,"NO",0,"NO",0,46,null,null,null,null,null,null,"ca",0,10]
[null,"Calificación de personal estratégico y de apoyo para el control de las entidades del Sector Financiero Popular y Solidario; y, organizaciones de la Economía Popular y Solidaria.",6,0,5,30,0,"NO",0,"NO",0,"NO",0,41]
[null,"Atención de requerimientos de reprocesos de estructuras de información reportadas por las entidades del Sector Financiero Popular y Solidario.",10,0,5,30,0,"NO",0,"NO",0,"NO",0,45,null,null,null,null,null,null,"cpa",5,10,20]
[null,"Atención de reclamos a entidades del Sector Financiero Popular y Solidario; y, a organizaciones de la Economía Popular y Solidaria.",10,0,20,30,0,"NO",0,"NO",0,"NO",0,60,null,null,null,null,null,null,"tr",0,30]
[null,"Constitución de organizaciones de la Economía Popular y Solidaria.",10,0,5,30,0,"NO",0,"NO",0,"NO",0,45,null,null,null,null,null,null,"ca",0,10]
[null,"Registro de Directivas de entidades del Sector Financiero Popular y Solidario.",10,0,5,30,0,"NO",0,"NO",0,"NO",0,45]
[null,"Actualización de datos de contacto de las organizaciones de la Economía Popular y Solidaria.",10,0,null,0,0,"NO",0,"NO",0,"NO",0,10,null,null,null,null,null,null,"cpa",5,10,20]
[null,"Atención de denuncias a entidades del Sector Financiero Popular y Solidario; y, a organizaciones de la Economía Popular y Solidaria.",10,0,20,30,0,"NO",0,"NO",0,"NO",0,60,null,null,null,null,null,null,"tr",0,30]
[null,"Emisión de copias certificadas de documentación de acceso público en competencia de la Superintendencia de Economía Popular y Solidaria.",10,0,5,30,0,"NO",0,"NO",0,"NO",0,45,null,null,null,null,null,null,"ca",0,10]
[null,"Atención de requerimientos de administración de controles de las estructuras de información reportadas por las entidades del Sector Financiero Popular y Solidario.",10,0,5,30,0,"NO",0,"NO",0,"NO",0,45]
[null,"Atención de requerimientos de prórroga para el reporte de información de las entidades del Sector Financiero Popular y Solidario.",10,0,5,0,0,"NO",0,"NO",0,"NO",0,15,null,null,null,null,null,null,"cpa",5,10,20]
[null,"Emisión de certificaciones de información de documentación de acceso público en competencia de la Superintendencia de Economía Popular y Solidaria.",10,0,5,30,0,"NO",0,"NO",0,"NO",0,45,null,null,null,null,null,null,"tr",0,30]
[null,"Reserva de denominación de Organizaciones de la Economía Popular y Solidaria.",10,0,5,0,0,"NO",0,"NO",0,"NO",0,15,null,null,null,null,null,null,"ca",0,10]
[null,"Registro de Directivas de organizaciones de la Economía Popular y Solidaria.",10,0,10,30,0,"NO",0,"NO",0,"NO",0,50]
[null,"Registro de socios de las organizaciones de la Economía Popular y Solidaria.",10,0,10,30,0,"NO",0,"NO",0,"NO",0,50,null,null,null,null,null,null,"cpa",5,10,20]
[null,"Atención de consultas de información general en el ámbito de competencia de la Superintendencia de Economía Popular y Solidaria",10,0,5,0,0,"SI",5,"NO",0,"NO",0,20,null,null,null,null,null,null,"tr",0,30]
[null,null,null,null,null,null,null,null,null,null,null,null,null,null,null,null,null,null,null,null,"ca",0,10]
[]
[null,null,null,null,null,null,null,null,null,null,null,null,null,null,null,null,null,null,null,null,"cpa",5,10,20]
[null,null,null,null,null,null,null,null,null,null,null,null,null,null,null,null,null,null,null,null,"tr",0,30]
[null,null,null,null,null,null,null,null,null,null,null,null,null,null,null,null,null,null,null,null,"ca",0,10]
[null,null,null,null,null,null,null,null,null,null,null,null,null,null,null,null,null,null,null,null,null,"SI","NO"]